Workbook

Sheet ORTP Summary
B3: ISO-NE PUBLIC
B5: Summary of 2026-2027 ORTPs
B8: Reference | C8: CT | D8: CC | E8: Onshore Wind | F8: Solar | G8: Battery
B9: Total Plant Capital Cost ($MM) | C9: =319765785.874606/1000000 -> 319.7657859 | D9: =599104967.944856/1000000 -> 599.1049679 | E9: =179859959.048784/1000000 -> 179.859959 | F9: =27630352.5825819/1000000 -> 27.63035258 | G9: =136989533.994627/1000000 -> 136.989534
B10: Gross CONE ($/kW-mo installed) | C10: 9.504552847 | D10: 13.16836477 | E10: 18.5044869 | F10: 8.943772632 | G10: 8.512950188
B11: Revenue Offset ($/kW-mo installed) | C11: 4.501239645 | D11: 4.370502327 | E11: 30.33987542 | F11: 12.07863579 | G11: 7.723963583
B12: Net CONE ($/kW-mo installed) | C12: 5.003313202 | D12: 8.797862444 | E12: -11.83538851 | F12: -3.134863162 | G12: 0.7889866047
B13: Net CONE ($/kW-mo qualified) | C13: 5.212 | D13: 9.775 | E13: -30.099 | F13: -16.622 | G13: 0.789
B14: Final ORTP 2026-2027 ($/kW-mo) | C14: 5.212 | D14: 9.775 | E14: 0 | F14: 0 | G14: 0.789
B21: DROP DOWN LIST FOR CONTROLS & RESULTS
B22: CC - ORTP
B23: SC - ORTP
B24: Onshore Wind - ORTP
B25: Solar - ORTP
B26: Battery - ORTP

Sheet BLS
A1: PPI Commodity Data
A3: Series Title | B3: PPI Commodity data for Machinery and equipment-General purpose machinery and equipment, not seasonally adjusted
A4: Series ID | B4: WPU114
A5: Seasonality | B5: Not Seasonally Adjusted | I5: (1) For the simple cycle combustion turbine and combined cycle gas turbine technology types, each line item associated with capital costs that is included in the capital budgeting model will be updated to reflect changes in the Bureau of Labor Statistics Producer Price Index for Machinery and Equipment: General Purpose Machinery and Equipment (WPU114).
A6: Survey Name | B6: PPI Commodity Data
A7: Measure Data Type | B7: General purpose machinery and equipment
A8: Sector | B8: Machinery and equipment
A9: Item | B9: General purpose machinery and equipment
A12: Year | B12: Period | C12: Label | D12: Observation Value
A13: 2017 | B13: M01 | C13: 2017 Jan | D13: 229.4
A14: 2017 | B14: M02 | C14: 2017 Feb | D14: 230.3
A15: 2017 | B15: M03 | C15: 2017 Mar | D15: 230.8
A16: 2017 | B16: M04 | C16: 2017 Apr | D16: 230.8
A17: 2017 | B17: M05 | C17: 2017 May | D17: 231.1
A18: 2017 | B18: M06 | C18: 2017 Jun | D18: 231.3
A19: 2017 | B19: M07 | C19: 2017 Jul | D19: 231.6
A20: 2017 | B20: M08 | C20: 2017 Aug | D20: 231.9
A21: 2017 | B21: M09 | C21: 2017 Sep | D21: 232.3
A22: 2017 | B22: M10 | C22: 2017 Oct | D22: 232.9
A23: 2017 | B23: M11 | C23: 2017 Nov | D23: 233.1
A24: 2017 | B24: M12 | C24: 2017 Dec | D24: 233.3
A25: 2018 | B25: M01 | C25: 2018 Jan | D25: 234.8
A26: 2018 | B26: M02 | C26: 2018 Feb | D26: 235.4
A27: 2018 | B27: M03 | C27: 2018 Mar | D27: 236.4
A28: 2018 | B28: M04 | C28: 2018 Apr | D28: 236.7
A29: 2018 | B29: M05 | C29: 2018 May | D29: 238.1
A30: 2018 | B30: M06 | C30: 2018 Jun | D30: 238.9
A31: 2018 | B31: M07 | C31: 2018 Jul | D31: 239.9
A32: 2018 | B32: M08 | C32: 2018 Aug | D32: 240.6
A33: 2018 | B33: M09 | C33: 2018 Sep | D33: 241.4
A34: 2018 | B34: M10 | C34: 2018 Oct | D34: 242.4
A35: 2018 | B35: M11 | C35: 2018 Nov | D35: 242.8
A36: 2018 | B36: M12 | C36: 2018 Dec | D36: 242.9
A37: 2019 | B37: M01 | C37: 2019 Jan | D37: 244.7
A38: 2019 | B38: M02 | C38: 2019 Feb | D38: 245.1
A39: 2019 | B39: M03 | C39: 2019 Mar | D39: 246
A40: 2019 | B40: M04 | C40: 2019 Apr | D40: 247
A41: 2019 | B41: M05 | C41: 2019 May | D41: 247
A42: 2019 | B42: M06 | C42: 2019 Jun | D42: 247.4
A43: 2019 | B43: M07 | C43: 2019 Jul | D43: 247.8
A44: 2019 | B44: M08 | C44: 2019 Aug | D44: 247.6
A45: 2019 | B45: M09 | C45: 2019 Sep | D45: 247.8
A46: 2019 | B46: M10 | C46: 2019 Oct | D46: 248
A47: 2019 | B47: M11 | C47: 2019 Nov | D47: 248.2
A48: 2019 | B48: M12 | C48: 2019 Dec | D48: 248.3
A49: 2020 | B49: M01 | C49: 2020 Jan | D49: 249.3
A50: 2020 | B50: M02 | C50: 2020 Feb | D50: 249.7
A51: 2020 | B51: M03 | C51: 2020 Mar | D51: 250.7
A52: 2020 | B52: M04 | C52: 2020 Apr | D52: 250.9
A53: 2020 | B53: M05 | C53: 2020 May | D53: 250.7
A54: 2020 | B54: M06 | C54: 2020 Jun | D54: 250.9
A55: 2020 | B55: M07 | C55: 2020 Jul | D55: 250.9
A56: 2020 | B56: M08 | C56: 2020 Aug | D56: 251.4
A57: 2020 | B57: M09 | C57: 2020 Sep | D57: 251.3
A58: 2020 | B58: M10 | C58: 2020 Oct | D58: 251.9
A59: 2020 | B59: M11 | C59: 2020 Nov | D59: 252.1
A60: 2020 | B60: M12 | C60: 2020 Dec | D60: 252.6
A61: 2021 | B61: M01 | C61: 2021 Jan | D61: 254.8
A62: 2021 | B62: M02 | C62: 2021 Feb | D62: 255.9
A63: 2021 | B63: M03 | C63: 2021 Mar | D63: 257.1
A64: 2021 | B64: M04 | C64: 2021 Apr | D64: 258
A65: 2021 | B65: M05 | C65: 2021 May | D65: 260.3
A66: 2021 | B66: M06 | C66: 2021 Jun | D66: 263.2
A67: 2021 | B67: M07 | C67: 2021 Jul | D67: 266.413
A68: 2021 | B68: M08 | C68: 2021 Aug | D68: 268.546
A69: 2021 | B69: M09 | C69: 2021 Sep | D69: 271.354
A70: 2021 | B70: M10 | C70: 2021 Oct | D70: 274.139
A71: 2021 | B71: M11 | C71: 2021 Nov | D71: 275.99
B72: M12 | C72: 2021 Dec | D72: 278.263
D74: =D75/D77 -> 1.040694558 | E74: Multiplier equal to the
D75: =AVERAGE(D61:D72) -> 265.33375 | E75: average of values published during the most recent 12 month period available at the time of making the adjustment
E76: Divided by the
D77: =AVERAGE($D$55:$D$66) -> 254.9583333 | E77: average of the most recent 12 month period available at the time of establishing the Offer Review Trigger Prices reflected in the table in Section III.A.21.1.1.

Sheet BB LCOE
A1: Multiplier | B1: LCOE per Technology Type (2019$/MWh), US Market
B3: Technology | C3: 2021-06-30 | D3: 2020-12-31 | E3: 2020-06-30 | F3: 2019-12-31 | G3: 2019-06-30 | H3: 2018-12-31 | I3: 2018-06-30 | J3: 2017-12-31 | K3: 2017-06-30 | L3: 2016-12-31 | M3: 2016-06-30 | N3: 2015-12-31 | O3: 2015-06-30 | P3: 2014-12-31 | Q3: 2014-06-30
A4: =AVERAGE(D4,C4)/AVERAGE(E4,F4) -> 0.9037022775 | B4: PV non-tracking | C4: 38.870412 | D4: 45.696772 | E4: 45.103815 | F4: 48.474774 | G4: 54.598791 | H4: 56.8512 | I4: 54.8208 | J4: 62.247724 | K4: 69.674648 | L4: 83.481566 | M4: 92.530684 | N4: 115.302812 | O4: 143.085568 | P4: 147.991936 | Q4: 144.950164
A5: =C5/D5 -> 0.9341098999 | B5: Utility-scale battery | C5: 118.516293 | D5: 126.876177
A6: =AVERAGE(D6,C6)/AVERAGE(E6,F6) -> 0.986280261 | B6: Wind onshore | C6: 35.894684 | D6: 36.719353 | E6: 37.232003 | F6: 36.392138 | G6: 37.722801 | H6: 39.5928 | I6: 40.608 | J6: 46.821963 | K6: 53.035926 | L6: 59.887555 | M6: 69.479269 | N6: 71.756244 | O6: 72.655074 | P6: 84.008207 | Q6: 113.292243
B11: For all other Generating Capacity Resource technology types, each line item associated with capital costs that is included in the capital budgeting model will be updated to reflect changes in the levelized cost of energy for that technology as published by Bloomberg.
B12: Technologies = Onshore wind, ESD/Lithium Ion, PV solar (tracking)

Sheet RECs
A2: Renewable Energy Credits (Data)
A3: Historical Period: 10 Years
A4: Location: MA Class I
A5: Instrument: All
A6: Inflation | B6: 0.02
A7: 2026$ 5-year Average | B7: =AVERAGE(B9:F9) -> 39.70182223
A8: Inflation adjustment to CCP dollar year | B8: 2026
A9: 2026$ Average | B9: =B10*(1+$B$6)^($B$8-B11) -> 38.53246248 | C9: =C10*(1+$B$6)^($B$8-C11) -> 41.93132685 | D9: 45.41654785 | E9: =E10*(1+$B$6)^($B$8-E11) -> 44.72312348 | F9: 27.90565049
A10: Nominal Average | B10: =AVERAGE(B13:B227) -> 36.31 | C10: =AVERAGE(C13:C227) -> 38.73806452 | D10: =AVERAGE(D13:D227) -> 41.13516667 | E10: =AVERAGE(E13:E227) -> 39.71285377 | F10: =AVERAGE(F13:F227) -> 24.29354808
A11: Dollar Year | B11: 2023 | C11: 2022 | D11: 2021 | E11: 2020 | F11: 2019
A12: Date | B12: MA Class I REC Index 2023 | C12: MA Class I REC Index 2022 | D12: MA Class I REC Index 2021 | E12: MA Class I REC Index 2020 | F12: MA Class I REC Index 2019
A13: 02/04/2022 | B13: 36.31 | C13: 38.31 | D13: 37.13
A14: 01/28/2022 | B14: 36.31 | C14: 38.6875 | D14: 38.125
A15: 01/21/2022 | C15: 38.8125 | D15: 39.25
A16: 01/14/2022 | C16: 38.8125 | D16: 39.75
A17: 01/07/2022 | C17: 38.8125 | D17: 39.75
A18: 12/24/2021 | C18: 38.875 | D18: 40
A19: 12/17/2021 | C19: 38.875 | D19: 40
A20: 12/10/2021 | C20: 38.875 | D20: 40
A21: 12/03/2021 | C21: 38.375 | D21: 40
A22: 11/26/2021 | C22: 38.375 | D22: 40
A23: 11/19/2021 | C23: 38.375 | D23: 39.25
A24: 11/12/2021 | C24: 38.9375 | D24: 39.75
A25: 11/05/2021 | C25: 39.6875 | D25: 41.125
A26: 10/29/2021 | C26: 39.625 | D26: 41.75
A27: 10/22/2021 | C27: 39.75 | D27: 42.125
A28: 10/15/2021 | C28: 39.75 | D28: 42.75
A29: 10/08/2021 | C29: 39.8125 | D29: 41.375
A30: 10/01/2021 | C30: 39.5625 | D30: 40.8125
A31: 09/24/2021 | C31: 38.625 | D31: 39.75
A32: 09/17/2021 | C32: 38.19 | D32: 38.5
A33: 09/10/2021 | C33: 38.125 | D33: 38.375
A34: 09/03/2021 | C34: 36.25 | D34: 36.875
A35: 08/27/2021 | C35: 38.125 | D35: 38.4375
A36: 08/20/2021 | C36: 38.125 | D36: 38.4375
A37: 08/13/2021 | C37: 38.125 | D37: 38.5
A38: 08/06/2021 | C38: 38.38 | D38: 39
A39: 07/30/2021 | C39: 38.375 | D39: 39
A40: 07/23/2021 | C40: 38.375 | D40: 39
A41: 07/16/2021 | C41: 38.625 | D41: 39.1875
A42: 07/09/2021 | C42: 39.625 | D42: 39.8125
A43: 07/02/2021 | C43: 39.625 | D43: 39.8125
A44: 06/25/2021 | D44: 39.25 | E44: 35.75
A45: 06/18/2021 | D45: 38.9375 | E45: 36.375
A46: 06/11/2021 | D46: 40.125 | E46: 35.75
A47: 06/04/2021 | D47: 39.875 | E47: 34
A48: 05/28/2021 | D48: 39.625 | E48: 32
A49: 05/21/2021 | D49: 40.375 | E49: 39.875
A50: 05/14/2021 | D50: 40.8125 | E50: 41.3125
A51: 05/07/2021 | D51: 40.5 | E51: 41.125
A52: 04/30/2021 | D52: 43.125 | E52: 42.6875
A53: 04/23/2021 | D53: 43.75 | E53: 42.9375
A54: 04/16/2021 | D54: 45.375 | E54: 48
A55: 04/09/2021 | D55: 45.375 | E55: 48.5
A56: 04/02/2021 | D56: 44.5 | E56: 47.375
A57: 03/26/2021 | D57: 44.5 | E57: 46.875
A58: 03/19/2021 | D58: 43.875 | E58: 46.375
A59: 03/12/2021 | D59: 41.75 | E59: 44.5
A60: 03/05/2021 | D60: 39.8125 | E60: 42.375
A61: 02/26/2021 | D61: 40.0625 | E61: 42.5
A62: 02/19/2021 | D62: 39.625 | E62: 42.125
A63: 02/12/2021 | D63: 39.625 | E63: 42.125
A64: 02/05/2021 | D64: 40.4375 | E64: 42.5
A65: 01/29/2021 | D65: 40.4375 | E65: 43.375
A66: 01/22/2021 | D66: 40.4375 | E66: 43.875
A67: 01/15/2021 | D67: 40.4375 | E67: 44.375
A68: 01/08/2021 | D68: 41.125 | E68: 44.1875
A69: 01/01/2021 | D69: 41.75 | E69: 43.5625
A70: 12/25/2020 | D70: 41.375 | E70: 43.3125
A71: 12/18/2020 | D71: 41.375 | E71: 43.125
A72: 12/11/2020 | D72: 42.4375 | E72: 44
A73: 12/04/2020 | D73: 43.5 | E73: 44.875
A74: 11/27/2020 | D74: 43.5 | E74: 45.375
A75: 11/20/2020 | D75: 43.5 | E75: 45.375
A76: 11/13/2020 | D76: 43.375 | E76: 44.4375
A77: 11/06/2020 | D77: 43.16666667 | E77: 45.125
A78: 10/30/2020 | D78: 43.25 | E78: 45.13
A79: 10/23/2020 | D79: 43.33333333 | E79: 45.66666667
A80: 10/16/2020 | D80: 43.08 | E80: 46.13
A81: 10/09/2020 | D81: 43.08 | E81: 46
A82: 10/02/2020 | D82: 42.66666667 | E82: 46.08333333
A83: 09/25/2020 | D83: 42.46 | E83: 46.29
A84: 09/18/2020 | D84: 42.67 | E84: 46.17
A85: 09/11/2020 | D85: 41.46 | E85: 43.33
A86: 09/04/2020 | D86: 41.21 | E86: 41.75
A87: 08/28/2020 | D87: 41.21 | E87: 41.25
A88: 08/21/2020 | D88: 41.67 | E88: 42
A89: 08/14/2020 | D89: 42 | E89: 43.08
A90: 08/07/2020 | D90: 42.54 | E90: 43.75
A91: 07/31/2020 | D91: 42.63 | E91: 44.29
A92: 07/24/2020 | D92: 42.54 | E92: 43.96
A93: 07/17/2020 | D93: 43.79 | E93: 42.88
A94: 07/10/2020 | D94: 44.33 | E94: 44.79
A95: 07/03/2020 | D95: 44.21 | E95: 44.75
A96: 06/26/2020 | D96: 43.04 | E96: 44.33
A97: 06/19/2020 | D97: 39.96 | E97: 42.58
A98: 06/12/2020 | E98: 41.54 | F98: 45.5
A99: 06/05/2020 | E99: 41.54166667 | F99: 42
A100: 05/29/2020 | E100: 41.29 | F100: 48.17
A101: 05/22/2020 | E101: 41.16666667 | F101: 49.91666667
A102: 05/15/2020 | E102: 37.58 | F102: 36.58
A103: 05/08/2020 | E103: 31.04 | F103: 29.04
A104: 05/01/2020 | E104: 30.25 | F104: 28.41666667
A105: 04/24/2020 | E105: 30.75 | F105: 24.33333333
A106: 04/17/2020 | E106: 27.91666667 | F106: 23.29166667
A107: 04/10/2020 | E107: 27.83333333 | F107: 25.58333333
A108: 04/03/2020 | E108: 32.96875 | F108: 30.16666667
A109: 03/27/2020 | E109: 31.33333333 | F109: 30.29166667
A110: 03/20/2020 | E110: 31.91666667 | F110: 30.83333333
A111: 03/13/2020 | E111: 39.66666667 | F111: 36.625
A112: 03/06/2020 | E112: 39.45833333 | F112: 36.875
A113: 02/28/2020 | E113: 40.33333333 | F113: 38.25
A114: 02/21/2020 | E114: 40.58333333 | F114: 39.04166667
A115: 02/14/2020 | E115: 39.45833333 | F115: 36.375
A116: 02/07/2020 | E116: 38.5 | F116: 34.41666667
A117: 01/31/2020 | E117: 42.33333333 | F117: 37.25
A118: 01/24/2020 | E118: 41.83333333 | F118: 37.54166667
A119: 01/17/2020 | E119: 38.34375 | F119: 35.41666667
A120: 01/10/2020 | E120: 42.9375 | F120: 40.41666667
A121: 01/03/2020 | E121: 44.0625 | F121: 42.41666667
A122: 12/27/2019 | E122: 44.8125 | F122: 43.125
A123: 12/20/2019 | E123: 45.125 | F123: 43.75
A124: 12/13/2019 | E124: 44.875 | F124: 41.66666667
A125: 12/06/2019 | E125: 44.66666667 | F125: 41.54166667
A126: 11/29/2019 | E126: 43.33333333 | F126: 39.75
A127: 11/22/2019 | E127: 41.83333333 | F127: 38.41666667
A128: 11/15/2019 | E128: 40.41666667 | F128: 37.16666667
A129: 11/08/2019 | E129: 43.29166667 | F129: 39.25
A130: 11/01/2019 | E130: 46.29 | F130: 40.75
A131: 10/25/2019 | E131: 45.125 | F131: 39.79166667
A132: 10/18/2019 | E132: 41.95833333 | F132: 38.625
A133: 10/11/2019 | E133: 38.95833333 | F133: 36.5
A134: 10/04/2019 | E134: 36.875 | F134: 34.41666667
A135: 09/27/2019 | E135: 35.83333333 | F135: 34.33333333
A136: 09/20/2019 | E136: 35.20833333 | F136: 34.29166667
A137: 09/13/2019 | E137: 32.95833333 | F137: 32.91666667
A138: 09/06/2019 | E138: 30.20833333 | F138: 29.875
A139: 08/30/2019 | E139: 29.66666667 | F139: 29.33333333
A140: 08/23/2019 | E140: 28.95833333 | F140: 28.41666667
A141: 08/16/2019 | E141: 27.29166667 | F141: 26.66666667
A142: 08/09/2019 | E142: 26.58333333 | F142: 25.16666667
A143: 08/02/2019 | E143: 26.04166667 | F143: 23.20833333
A144: 07/26/2019 | E144: 27.75 | F144: 25.75
A145: 07/19/2019 | E145: 26.70833333 | F145: 24.04166667
A146: 07/12/2019 | E146: 25.91666667 | F146: 22.75
A147: 07/05/2019 | E147: 25.375 | F147: 22.58333333
A148: 06/28/2019 | E148: 23.21666667 | F148: 20.58333333
A149: 06/21/2019 | E149: 21.375 | F149: 18.875
A150: 06/14/2019 | F150: 18.91666667
A151: 06/07/2019 | F151: 18.625
A152: 05/31/2019 | F152: 18.70833333
A153: 05/24/2019 | F153: 19.83333333
A154: 05/17/2019 | F154: 22.41666667
A155: 05/10/2019 | F155: 21.79166667
A156: 05/03/2019 | F156: 20.625
A157: 04/26/2019 | F157: 19.68333333
A158: 04/19/2019 | F158: 17.70833333
A159: 04/12/2019 | F159: 16.66666667
A160: 04/05/2019 | F160: 14.875
A161: 03/29/2019 | F161: 12.91666667
A162: 03/22/2019 | F162: 12.11666667
A163: 03/15/2019 | F163: 12.03333333
A164: 03/08/2019 | F164: 12.04166667
A165: 03/01/2019 | F165: 11.83333333
A166: 02/22/2019 | F166: 13.66666667
A167: 02/15/2019 | F167: 14.04
A168: 02/08/2019 | F168: 14.33
A169: 02/01/2019 | F169: 13.95833333
A170: 01/25/2019 | F170: 14.25
A171: 01/18/2019 | F171: 12.83333333
A172: 01/11/2019 | F172: 12.16666667
A173: 01/04/2019 | F173: 13
A174: 12/28/2018 | F174: 13.5
A175: 12/21/2018 | F175: 13.875
A176: 12/14/2018 | F176: 13.10833333
A177: 12/07/2018 | F177: 12.41666667
A178: 11/30/2018 | F178: 12.625
A179: 11/23/2018 | F179: 9
A180: 11/16/2018 | F180: 8.65625
A181: 11/09/2018 | F181: 7.125
A182: 11/02/2018 | F182: 6.75
A183: 10/26/2018 | F183: 7.175
A184: 10/19/2018 | F184: 7.175
A185: 10/12/2018 | F185: 8.083333333
A186: 10/05/2018 | F186: 8.541666667
A187: 09/28/2018 | F187: 8.666666667
A188: 09/21/2018 | F188: 8.791666667
A189: 09/14/2018 | F189: 8.875
A190: 09/07/2018 | F190: 8.175
A191: 08/31/2018 | F191: 8.375
A192: 08/24/2018 | F192: 9.416666667
A193: 08/17/2018 | F193: 10.875
A194: 08/10/2018 | F194: 12.66666667
A195: 08/03/2018 | F195: 15.08333333
A196: 07/27/2018 | F196: 16.83333333
A197: 07/20/2018 | F197: 17.58333333
A198: 07/13/2018 | F198: 20.66666667
A199: 07/06/2018 | F199: 24.16666667
A200: 06/29/2018 | F200: 25.54166667
A201: 06/22/2018 | F201: 25.54166667
... 29 more rows

Sheet ICE
A1: Futures Contracts As Of…
B2: 2020-08-31 | I2: 2021-02-07
C3: a | D3: b | E3: a+b = c | F3: d | G3: e = d/c | J3: a | K3: b | L3: a+b = c | M3: d | N3: e = d/c
C4: Henry Hub (H) | D4: Algonquin CG Basis (ALQ) | E4: Algonquin CG Delivered | F4: MA Hub On-Peak (NEP) | G4: Ratio | J4: Henry Hub (H) | K4: Algonquin CG Basis (ALQ) | L4: Algonquin CG Delivered | M4: MA Hub On-Peak (NEP) | N4: Ratio
C5: ($/MMBtu) | D5: ($/MMBtu) | E5: ($/MMBtu) | F5: ($/MWh) | J5: ($/MMBtu) | K5: ($/MMBtu) | L5: ($/MMBtu) | M5: ($/MWh)
B6: 2024-06-01 | C6: 2.337 | D6: -0.0975 | E6: =C6+D6 -> 2.2395 | F6: 30.5 | G6: =F6/E6 -> 13.61911141 | I6: 2026-06-01 | J6: 2.919 | K6: -0.4125 | L6: =J6+K6 -> 2.5065 | M6: 38.2 | N6: =M6/L6 -> 15.24037502
B7: 2024-07-01 | C7: 2.378 | D7: 0.08 | E7: =C7+D7 -> 2.458 | F7: 36.5 | G7: =F7/E7 -> 14.84947111 | I7: 2026-07-01 | J7: 2.968 | K7: -0.23 | L7: =J7+K7 -> 2.738 | M7: 49.55 | N7: =M7/L7 -> 18.09715121
B8: 2024-08-01 | C8: 2.387 | D8: 0.015 | E8: 2.402 | F8: 34.45 | G8: 14.34221482 | I8: 2026-08-01 | J8: 2.983 | K8: -0.3 | L8: 2.683 | M8: 46.3 | N8: 17.25680209
B9: 2024-09-01 | C9: 2.382 | D9: -0.335 | E9: 2.047 | F9: 30.95 | G9: 15.11968735 | I9: 2026-09-01 | J9: 2.981 | K9: -0.65 | L9: 2.331 | M9: 37.8 | N9: 16.21621622
B10: 2024-10-01 | C10: 2.413 | D10: -0.13 | E10: 2.283 | F10: 31.1 | G10: 13.62242663 | I10: 2026-10-01 | J10: 3.021 | K10: -0.445 | L10: 2.576 | M10: 38.85 | N10: 15.08152174
B11: 2024-11-01 | C11: 2.496 | D11: 1.3325 | E11: 3.8285 | F11: 40.6 | G11: 10.60467546 | I11: 2026-11-01 | J11: 3.161 | K11: 1.9525 | L11: 5.1135 | M11: 47.95 | N11: 9.377138946
B12: 2024-12-01 | C12: 2.691 | D12: 4.21 | E12: 6.901 | F12: 60.6 | G12: 8.781336038 | I12: 2026-12-01 | J12: 3.411 | K12: 3.6625 | L12: 7.0735 | M12: 66.95 | N12: 9.46490422
B13: 2025-01-01 | C13: 2.805 | D13: 5.68 | E13: 8.485 | F13: 73.95 | G13: 8.715380082 | I13: 2027-01-01 | J13: 3.546 | K13: 5.125 | L13: 8.671 | M13: 103.6 | N13: 11.94787222
B14: 2025-02-01 | C14: 2.77 | D14: 5.6075 | E14: 8.3775 | F14: 71.2 | G14: 8.498955536 | I14: 2027-02-01 | J14: 3.481 | K14: 4.9725 | L14: 8.4535 | M14: 98.75 | N14: 11.68155202
B15: 2025-03-01 | C15: 2.641 | D15: 2.7175 | E15: 5.3585 | F15: 50.55 | G15: 9.433610152 | I15: 2027-03-01 | J15: 3.336 | K15: 3.5775 | L15: 6.9135 | M15: 56.65 | N15: 8.194112967
B16: 2025-04-01 | C16: 2.346 | D16: 0.5825 | E16: 2.9285 | F16: 32.9 | G16: 11.23442035 | I16: 2027-04-01 | J16: 2.936 | K16: 0.11 | L16: 3.046 | M16: 43.05 | N16: 14.13328956
B17: 2025-05-01 | C17: 2.324 | D17: -0.1075 | E17: 2.2165 | F17: 29.35 | G17: 13.24159711 | I17: 2027-05-01 | J17: 2.921 | K17: -0.4725 | L17: 2.4485 | M17: 37.55 | N17: 15.33591995
B19: Average | F19: =AVERAGEIF(F6:F17,"<>#VALUE!",F6:F17) -> 43.55416667 | G19: =AVERAGEIF(G6:G17,"<>#VALUE!",G6:G17) -> 11.83857384 | I19: Average | M19: =AVERAGEIF(M6:M17,"<>#VALUE!",M6:M17) -> 55.43333333 | N19: =AVERAGEIF(N6:N17,"<>#VALUE!",N6:N17) -> 13.50223801
I21: 2021-02-04
J22: a | K22: b | L22: a+b = c | M22: d | N22: e = d/c
J23: Henry Hub (H) | K23: Algonquin CG Basis (ALQ) | L23: Algonquin CG Delivered | M23: MA Hub On-Peak (NEP) | N23: Ratio
J24: ($/MMBtu) | K24: ($/MMBtu) | L24: ($/MMBtu) | M24: ($/MWh)
I25: 2026-06-01 | J25: 2.903 | K25: -0.4125 | L25: =J25+K25 -> 2.4905 | M25: 38.3 | N25: =M25/L25 -> 15.37843806
I26: 2026-07-01 | J26: 2.95 | K26: -0.23 | L26: =J26+K26 -> 2.72 | M26: 49.7 | N26: =M26/L26 -> 18.27205882
I27: 2026-08-01 | J27: 2.967 | K27: -0.3 | L27: 2.667 | M27: 46.45 | N27: 17.41657293
I28: 2026-09-01 | J28: 2.965 | K28: -0.65 | L28: 2.315 | M28: 37.95 | N28: 16.39308855
I29: 2026-10-01 | J29: 3.005 | K29: -0.445 | L29: 2.56 | M29: 39 | N29: 15.234375
I30: 2026-11-01 | J30: 3.145 | K30: 1.9525 | L30: 5.0975 | M30: 48.1 | N30: 9.435998038
I31: 2026-12-01 | J31: 3.395 | K31: 3.6625 | L31: 7.0575 | M31: 67.1 | N31: 9.507616011
I32: 2027-01-01 | J32: 3.53 | K32: 5.125 | L32: 8.655 | M32: 103.8 | N32: 11.99306759
I33: 2027-02-01 | J33: 3.465 | K33: 4.9725 | L33: 8.4375 | M33: 98.95 | N33: 11.72740741
I34: 2027-03-01 | J34: 3.32 | K34: 3.5775 | L34: 6.8975 | M34: 56.8 | N34: 8.234867706
I35: 2027-04-01 | J35: 2.92 | K35: 0.11 | L35: 3.03 | M35: 43.2 | N35: 14.25742574
I36: 2027-05-01 | J36: 2.905 | K36: -0.4725 | L36: 2.4325 | M36: 37.65 | N36: 15.47790339
I38: Average | M38: =AVERAGEIF(M25:M36,"<>#VALUE!",M25:M36) -> 55.58333333 | N38: =AVERAGEIF(N25:N36,"<>#VALUE!",N25:N36) -> 13.61073494
I40: 2021-02-03
J41: a | K41: b | L41: a+b = c | M41: d | N41: e = d/c
J42: Henry Hub (H) | K42: Algonquin CG Basis (ALQ) | L42: Algonquin CG Delivered | M42: MA Hub On-Peak (NEP) | N42: Ratio
J43: ($/MMBtu) | K43: ($/MMBtu) | L43: ($/MMBtu) | M43: ($/MWh)
I44: 2026-06-01 | J44: 2.867 | K44: -0.4125 | L44: =J44+K44 -> 2.4545 | M44: 38.35 | N44: =M44/L44 -> 15.62436341
I45: 2026-07-01 | J45: 2.914 | K45: -0.23 | L45: =J45+K45 -> 2.684 | M45: 49.75 | N45: =M45/L45 -> 18.53576751
I46: 2026-08-01 | J46: 2.931 | K46: -0.3 | L46: 2.631 | M46: 46.5 | N46: 17.67388826
I47: 2026-09-01 | J47: 2.929 | K47: -0.65 | L47: 2.279 | M47: 38 | N47: 16.67397982
I48: 2026-10-01 | J48: 2.965 | K48: -0.445 | L48: 2.52 | M48: 39.05 | N48: 15.49603175
I49: 2026-11-01 | J49: 3.1 | K49: 1.95 | L49: 5.05 | M49: 48.15 | N49: 9.534653465
I50: 2026-12-01 | J50: 3.35 | K50: 3.66 | L50: 7.01 | M50: 67.15 | N50: 9.579172611
I51: 2027-01-01 | J51: 3.485 | K51: 5.1225 | L51: 8.6075 | M51: 103.85 | N51: 12.06505954
I52: 2027-02-01 | J52: 3.435 | K52: 4.97 | L52: 8.405 | M52: 99 | N52: 11.77870315
I53: 2027-03-01 | J53: 3.29 | K53: 3.575 | L53: 6.865 | M53: 56.85 | N53: 8.281136198
I54: 2027-04-01 | J54: 2.89 | K54: 0.11 | L54: 3 | M54: 43.25 | N54: 14.41666667
I55: 2027-05-01 | J55: 2.875 | K55: -0.4725 | L55: 2.4025 | M55: 37.7 | N55: 15.69198751
I57: Average | M57: =AVERAGEIF(M44:M55,"<>#VALUE!",M44:M55) -> 55.63333333 | N57: =AVERAGEIF(N44:N55,"<>#VALUE!",N44:N55) -> 13.77928416
I59: 2021-02-02
J60: a | K60: b | L60: a+b = c | M60: d | N60: e = d/c
J61: Henry Hub (H) | K61: Algonquin CG Basis (ALQ) | L61: Algonquin CG Delivered | M61: MA Hub On-Peak (NEP) | N61: Ratio
J62: ($/MMBtu) | K62: ($/MMBtu) | L62: ($/MMBtu) | M62: ($/MWh)
I63: 2026-06-01 | J63: 2.876 | K63: -0.4125 | L63: =J63+K63 -> 2.4635 | M63: 38.7 | N63: =M63/L63 -> 15.70935661
I64: 2026-07-01 | J64: 2.923 | K64: -0.23 | L64: =J64+K64 -> 2.693 | M64: 50.15 | N64: =M64/L64 -> 18.62235425
I65: 2026-08-01 | J65: 2.94 | K65: -0.3 | L65: 2.64 | M65: 46.9 | N65: 17.76515152
I66: 2026-09-01 | J66: 2.938 | K66: -0.65 | L66: 2.288 | M66: 38.35 | N66: 16.76136364
I67: 2026-10-01 | J67: 2.974 | K67: -0.445 | L67: 2.529 | M67: 39.4 | N67: 15.57928035
I68: 2026-11-01 | J68: 3.109 | K68: 1.95 | L68: 5.059 | M68: 48.5 | N68: 9.586874876
I69: 2026-12-01 | J69: 3.359 | K69: 3.66 | L69: 7.019 | M69: 67.55 | N69: 9.623878045
I70: 2027-01-01 | J70: 3.494 | K70: 5.1225 | L70: 8.6165 | M70: 104.4 | N70: 12.11628852
I71: 2027-02-01 | J71: 3.444 | K71: 4.97 | L71: 8.414 | M71: 99.55 | N71: 11.83147136
I72: 2027-03-01 | J72: 3.299 | K72: 3.575 | L72: 6.874 | M72: 57.25 | N72: 8.328484143
I73: 2027-04-01 | J73: 2.899 | K73: 0.11 | L73: 3.009 | M73: 43.6 | N73: 14.48986374
I74: 2027-05-01 | J74: 2.884 | K74: -0.4725 | L74: 2.4115 | M74: 38.05 | N74: 15.77856106
I76: Average | M76: =AVERAGEIF(M63:M74,"<>#VALUE!",M63:M74) -> 56.03333333 | N76: =AVERAGEIF(N63:N74,"<>#VALUE!",N63:N74) -> 13.84941067
I78: 2021-02-01
J79: a | K79: b | L79: a+b = c | M79: d | N79: e = d/c
J80: Henry Hub (H) | K80: Algonquin CG Basis (ALQ) | L80: Algonquin CG Delivered | M80: MA Hub On-Peak (NEP) | N80: Ratio
J81: ($/MMBtu) | K81: ($/MMBtu) | L81: ($/MMBtu) | M81: ($/MWh)
I82: 2026-06-01 | J82: 2.857 | K82: -0.4125 | L82: =J82+K82 -> 2.4445 | M82: 38.25 | N82: =M82/L82 -> 15.64737165
I83: 2026-07-01 | J83: 2.904 | K83: -0.23 | L83: =J83+K83 -> 2.674 | M83: 49.55 | N83: =M83/L83 -> 18.5302917
I84: 2026-08-01 | J84: 2.921 | K84: -0.3 | L84: 2.621 | M84: 46.35 | N84: 17.68409004
I85: 2026-09-01 | J85: 2.919 | K85: -0.65 | L85: 2.269 | M85: 37.85 | N85: 16.68135743
I86: 2026-10-01 | J86: 2.955 | K86: -0.445 | L86: 2.51 | M86: 38.9 | N86: 15.49800797
I87: 2026-11-01 | J87: 3.09 | K87: 1.95 | L87: 5.04 | M87: 48 | N87: 9.523809524
I88: 2026-12-01 | J88: 3.34 | K88: 3.66 | L88: 7 | M88: 67 | N88: 9.571428571
I89: 2027-01-01 | J89: 3.475 | K89: 5.1225 | L89: 8.5975 | M89: 103.6 | N89: 12.05001454
I90: 2027-02-01 | J90: 3.425 | K90: 4.97 | L90: 8.395 | M90: 98.8 | N90: 11.76891007
I91: 2027-03-01 | J91: 3.28 | K91: 3.575 | L91: 6.855 | M91: 56.7 | N91: 8.271334792
I92: 2027-04-01 | J92: 2.88 | K92: 0.11 | L92: 2.99 | M92: 43.1 | N92: 14.41471572
I93: 2027-05-01 | J93: 2.865 | K93: -0.4725 | L93: 2.3925 | M93: 37.6 | N93: 15.71577847
I95: Average | M95: =AVERAGEIF(M82:M93,"<>#VALUE!",M82:M93) -> 55.475 | N95: =AVERAGEIF(N82:N93,"<>#VALUE!",N82:N93) -> 13.77975921
B97: August 31, 2020 Average Ratio | F97: =F19 -> 43.55416667 | G97: =G19 -> 11.83857384 | I97: Average of February Averages | M97: =AVERAGE(M95,M76,M57,M38,M19) -> 55.63166667 | N97: =AVERAGE(N95,N76,N57,N38,N19) -> 13.7042854
F99: Gas Unit Multiplier | G99: =N97/G97 -> 1.157595973
F100: Non-Gas Unit Multiplier | G100: =M97/F97 -> 1.277298383

Sheet Controls & Results
F1: ISO-NE Public
B2: Instructions | F2: Annually Updated Values - post Net CONE & ORTP Order, June 2021
B3: 1. Choose reference technology from drop-down below | G3: Annual Updates - to be updated annually by ISO-NE
B4: 2. Choose Market Proposal
B5: 3. Click the "Run Model" button below. Macro MUST be run to get results.
B7: Choose reference technology & market proposals:
B8: Reference Technology | D8: Battery - ORTP
B9: With FRM | D9: With FRM
B11: Run model:
B19: Summary of Results: | C19: =Assumptions!D3 -> ORTP
B21: Technology: | C21: ='Controls & Results'!$D$8 -> Battery - ORTP
C23: NPV | D23: $/kW-yr | E23: $/kW-mo
B24: Expenses
B25: Fixed | C25: =Model!$C$18 -> 59588668.75 | D25: =-PMT(Assumptions!$D$39,20,C25)/(Assumptions!$D$15*1000) -> 30.00674462 | E25: =D25/12 -> 2.500562052
B26: Tax | C26: =Model!$C$22 -> 6286336.664 | D26: =-PMT(Assumptions!$D$39,20,C26)/(Assumptions!$D$15*1000) -> 3.165576658 | E26: =D26/12 -> 0.2637980548
B27: Install Costs | C27: =-Model!$C$26 -> 136989534 | D27: =-PMT(Assumptions!$D$39,20,C27)/(Assumptions!$D$15*1000) -> 68.98308098 | E27: =D27/12 -> 5.748590081
B28: Gross CONE | C28: =SUM(C25:C27) -> 202864539.4 | D28: =SUM(D25:D27) -> 102.1554023 | E28: =SUM(E25:E27) -> 8.512950188
B30: Revenues
B31: PFP | C31: =Model!$C$6 -> 22090232.8 | D31: =-PMT(Assumptions!$D$39,20,C31)/(Assumptions!$D$15*1000) -> 11.12385942 | E31: =D31/12 -> 0.9269882847
B32: Scarcity | C32: =Model!$C$7 -> 12339413.72 | D32: =-PMT(Assumptions!$D$39,20,C32)/(Assumptions!$D$15*1000) -> 6.213692031 | E32: =D32/12 -> 0.5178076692
B33: E&AS | C33: =Model!$C$8 -> 149633255.3 | D33: =-PMT(Assumptions!$D$39,20,C33)/(Assumptions!$D$15*1000) -> 75.35001155 | E33: =D33/12 -> 6.279167629
B34: REC | C34: =Model!$C$9 -> 0 | D34: =-PMT(Assumptions!$D$39,20,C34)/(Assumptions!$D$15*1000) -> 0 | E34: =D34/12 -> 0
B35: Revenue Offset | C35: =SUM(C31:C34) -> 184062901.8 | D35: =SUM(D31:D34) -> 92.687563 | E35: =SUM(E31:E34) -> 7.723963583
B37: Net CONE Installed | C37: =C28-C35 -> 18801637.58 | D37: =D28-D35 -> 9.467839257 | E37: =E28-E35 -> 0.7889866047
B38: Net CONE Qualified | C38: =C37/Assumptions!$D$17 -> 18801637.58 | D38: =D37/Assumptions!$D$17 -> 9.467839257 | E38: =ROUND(E37/Assumptions!$D$17,3) -> 0.789

Sheet Assumptions
B1: Resource Assumptions
C3: CONE or ORTP: | D3: =RIGHT(D4,4) -> ORTP | F3: ORTP | G3: ORTP | H3: ORTP | I3: ORTP | J3: ORTP | K3: ORTP | L3: ORTP
C4: Reference Technology | D4: ='Controls & Results'!D8 -> Battery - ORTP
D5: =MATCH('Controls & Results'!D8,F5:L5,0) -> 6 | F5: CC - ORTP | G5: SC - ORTP | H5: Onshore Wind - ORTP | I5: Offshore Wind - ORTP | J5: Solar - ORTP | K5: Battery - ORTP | L5: Co-located Resource - ORTP
F6: Combined Cycle | G6: Simple Cycle
F7: 7HA 02 Combined Cycle | G7: 7HA 02 Simple Cycle
B8: Line | C8: Assumption
B9: Plant
B10: =MAX($B$9:B9)+1 -> 1 | C10: Location | D10: =OFFSET(F10,0,D$5-1) -> RI | F10: CT | G10: CT | H10: NH | I10: MA | J10: CT | K10: RI | L10: MA
B11: =MAX($B$9:B10)+1 -> 2 | C11: Fuel Type | D11: =OFFSET(F11,0,D$5-1) -> 0 | F11: Natural Gas | G11: Natural Gas | H11: Wind | I11: Wind | J11: Solar
B12: =MAX($B$9:B11)+1 -> 3 | C12: Property Tax Rate | D12: 0.01 | F12: 0.01 | G12: 0.01 | H12: 0.01 | I12: 0.01 | J12: 0.01 | K12: 0.01 | L12: 0.01
B13: =MAX($B$9:B12)+1 -> 4 | C13: Insurance (% of Installed Costs) | D13: 0.003 | F13: 0.003 | G13: 0.003 | H13: 0.003 | I13: 0.003 | J13: 0.003 | K13: 0.003 | L13: 0.003
B14: =MAX($B$9:B13)+1 -> 5 | C14: Site Leasing ($/acre) | D14: 25000 | F14: 25000 | G14: 25000 | H14: 175 | I14: 7 | J14: 1500 | K14: =F14 -> 25000 | L14: 2850
B15: =MAX($B$9:B14)+1 -> 6 | C15: Plant Capacity (MW) | D15: 150 | F15: 557 | G15: 376 | H15: 82.5 | I15: 800 | J15: 20 | K15: 150 | L15: 10
B16: =MAX($B$9:B15)+1 -> 7 | C16: Plant Capacity for REC Calculation (MW) | D16: 0 | H16: =H15 -> 82.5 | I16: =I15 -> 800 | J16: =J15 -> 20 | L16: 5
B17: =MAX($B$9:B16)+1 -> 8 | C17: Qualified Capacity (%) | D17: 1 | F17: 0.9 | G17: 0.96 | H17: =32.44/H16 -> 0.3932121212 | I17: =371.663/800 -> 0.46457875 | J17: =3.772/20 -> 0.1886 | K17: =150/150 -> 1 | L17: =(5*J17+5*K17)/10 -> 0.5943
B18: =MAX($B$9:B17)+1 -> 9 | C18: Capacity Factor (%) | D18: 0 | H18: 0.431 | I18: 0.47 | J18: 0.172 | L18: =J18 -> 0.172
B19: =MAX($B$9:B18)+1 -> 10 | C19: Acres | D19: 10 | F19: 15 | G19: 8 | H19: 4700 | I19: 75600 | J19: 133 | K19: 10 | L19: 35
B20: =MAX($B$9:B19)+1 -> 11 | C20: REC Price ($/MWh) | D20: 0 | H20: =RECs!$B$7 -> 39.70182223 | I20: =RECs!$B$7 -> 39.70182223 | J20: =RECs!$B$7 -> 39.70182223 | L20: =RECs!$B$7 -> 39.70182223
B21: =MAX($B$9:B20)+1 -> 12 | C21: Investment Tax Credit | D21: 0 | F21: 0 | G21: 0 | H21: 0 | I21: 0.3 | J21: 0.26 | K21: 0 | L21: 0.26
B22: =MAX($B$9:B21)+1 -> 13 | C22: Percent of Time Renewable-Charged (%) | D22: 0 | F22: 0 | G22: 0 | H22: 0 | I22: 0 | J22: 0 | K22: 0 | L22: 1
B24: Financial
B25: =MAX($B$9:B24)+1 -> 14 | C25: Economic Life (years) | D25: 20
B26: =MAX($B$9:B25)+1 -> 15 | C26: Tax Depreciation Schedule | D26: =OFFSET(F26,0,D$5-1) -> 7yrMACRS | F26: 20yrMACRS | G26: 15yrMACRS | H26: 5yrMACRS | I26: 5yrMACRS | J26: 5yrMACRS | K26: 7yrMACRS | L26: 5yrMACRS
B27: =MAX($B$9:B26)+1 -> 16 | C27: Bonus Depreciation (%) | D27: 0.2 | F27: 0.2 | G27: 0.2 | H27: 0.2 | I27: 0.2 | J27: 0.2 | K27: 0.2 | L27: 0.2
B28: =MAX($B$9:B27)+1 -> 17 | C28: Federal Tax Rate (%) | D28: 0.21 | F28: 0.21 | G28: 0.21 | H28: 0.21 | I28: 0.21 | J28: 0.21 | K28: 0.21 | L28: 0.21
B29: =MAX($B$9:B28)+1 -> 18 | C29: State Tax Rate (%) | D29: 0.07 | F29: 0.075 | G29: 0.075 | H29: 0.077 | I29: 0.08 | J29: 0.075 | K29: 0.07 | L29: 0.08
B30: =MAX($B$9:B29)+1 -> 19 | C30: Effective Income Tax Rate (%) | D30: 0.2653 | F30: =1-(1-F28)*(1-F29) -> 0.26925 | G30: =1-(1-G28)*(1-G29) -> 0.26925 | H30: =1-(1-H28)*(1-H29) -> 0.27083 | I30: =1-(1-I28)*(1-I29) -> 0.2732 | J30: =1-(1-J28)*(1-J29) -> 0.26925 | K30: =1-(1-K28)*(1-K29) -> 0.2653 | L30: =1-(1-L28)*(1-L29) -> 0.2732
B31: =MAX($B$9:B30)+1 -> 20 | C31: Debt Weight (%) | D31: 0.6 | F31: 0.6 | G31: 0.6 | H31: 0.6 | I31: 0.6 | J31: 0.6 | K31: 0.6 | L31: 0.6
B32: =MAX($B$9:B31)+1 -> 21 | C32: Equity Weight (%) | D32: 0.4 | F32: =1-F31 -> 0.4 | G32: 0.4 | H32: 0.4 | I32: 0.4 | J32: 0.4 | K32: 0.4 | L32: 0.4
B33: =MAX($B$9:B32)+1 -> 22 | C33: Cost of Debt (%) | D33: 0.045 | F33: 0.045 | G33: 0.045 | H33: 0.045 | I33: 0.045 | J33: 0.045 | K33: 0.045 | L33: 0.045
B34: =MAX($B$9:B33)+1 -> 23 | C34: After Tax Cost of Debt (%) | D34: 0.0330615 | F34: =F33*(1-F30) -> 0.03288375 | G34: 0.03288375 | H34: 0.03281265 | I34: 0.032706 | J34: 0.03288375 | K34: 0.0330615 | L34: 0.032706
B35: =MAX($B$9:B34)+1 -> 24 | C35: Cost of Equity (%) | D35: 0.11 | F35: 0.11 | G35: 0.11 | H35: 0.11 | I35: 0.11 | J35: 0.11 | K35: 0.11 | L35: 0.11
B36: =MAX($B$9:B35)+1 -> 25 | C36: Annual Inflation Rate (%) | D36: 0.02 | F36: 0.02 | G36: 0.02 | H36: 0.02 | I36: 0.02 | J36: 0.02 | K36: 0.02 | L36: 0.02
B37: =MAX($B$9:B36)+1 -> 26 | C37: WACC (%) | D37: 0.071 | F37: =F31*F33+F32*F35 -> 0.071 | G37: 0.071 | H37: 0.071 | I37: 0.071 | J37: 0.071 | K37: 0.071 | L37: 0.071
B38: =MAX($B$9:B37)+1 -> 27 | C38: ATWACC (%) | D38: 0.0638369 | F38: =(F31*F34)+(F32*F35) -> 0.06373025 | G38: 0.06373025 | H38: 0.06368759 | I38: 0.0636236 | J38: 0.06373025 | K38: 0.0638369 | L38: 0.0636236
B39: =MAX($B$9:B38)+1 -> 28 | C39: Discount Rate (%) | D39: 0.04297735294 | E39: Real | F39: =(1+F38)/(1+F36)-1 -> 0.04287279412 | G39: 0.04287279412 | H39: 0.04283097059 | I39: 0.04276823529 | J39: 0.04287279412 | K39: 0.04297735294 | L39: 0.04276823529
B40: =MAX($B$9:B39)+1 -> 29 | C40: Monthly WACC | D40: 0.005732433832 | E40: Nominal | F40: =(1+F37)^(1/12)-1 -> 0.005732433832 | G40: 0.005732433832 | H40: 0.005732433832 | I40: 0.005732433832 | J40: 0.005732433832 | K40: 0.005732433832 | L40: 0.005732433832
B41: =MAX($B$9:B40)+1 -> 30 | C41: Monthly Inflation Rate | D41: 0.001651581302 | F41: =(1+F36)^(1/12)-1 -> 0.001651581302 | G41: 0.001651581302 | H41: 0.001651581302 | I41: 0.001651581302 | J41: 0.001651581302 | K41: 0.001651581302 | L41: 0.001651581302
B42: =MAX($B$9:B41)+1 -> 31 | C42: Monthly Real WACC (%) | D42: 0.004074123784 | F42: =(1+F40)/(1+F41)-1 -> 0.004074123784 | G42: 0.004074123784 | H42: 0.004074123784 | I42: 0.004074123784 | J42: 0.004074123784 | K42: 0.004074123784 | L42: 0.004074123784
B44: Construction
B45: =MAX($B$9:B44)+1 -> 32 | C45: Interest During Construction (%) | D45: =OFFSET(F45,0,D$5-1) -> 0.045 | E45: Nominal | F45: =F33 -> 0.045 | G45: 0.045 | H45: 0.045 | I45: 0.045 | J45: 0.045 | K45: 0.045 | L45: 0.045
B46: =MAX($B$9:B45)+1 -> 33 | C46: Monthly Cost of Debt During Construction | D46: 0.0036748094 | E46: Nominal | F46: =(1+F45)^(1/12)-1 -> 0.0036748094 | G46: 0.0036748094 | H46: 0.0036748094 | I46: 0.0036748094 | J46: 0.0036748094 | K46: 0.0036748094 | L46: 0.0036748094
B47: =MAX($B$9:B46)+1 -> 34 | C47: Construction Months | D47: 17 | F47: ='Capital Costs'!B4 -> 28 | G47: ='Capital Costs'!C4 -> 21 | H47: ='Capital Costs'!D4 -> 21 | I47: ='Capital Costs'!E4 -> 48 | J47: ='Capital Costs'!F4 -> 30 | K47: ='Capital Costs'!G4 -> 17 | L47: ='Capital Costs'!H4 -> 30
B49: Capital and O&M
B50: =MAX($B$9:B49)+1 -> 35 | C50: Overnight cost per kW ($ at construction start) | D50: =OFFSET(F50,0,D$5-1) -> 909.0387224 | E50: =TEXT(EDATE(45809,-$D$47),"mmm yyyy")&" $" -> Jan 2024 $ | F50: =INDEX('Capital Costs'!$N$44:$T$44,1,MATCH(Assumptions!F$5,'Capital Costs'!$N$2:$T$2,0)) -> 1028.043948 | G50: =INDEX('Capital Costs'!$N$44:$T$44,1,MATCH(Assumptions!G$5,'Capital Costs'!$N$2:$T$2,0)) -> 823.1155875 | H50: =INDEX('Capital Costs'!$N$44:$T$44,1,MATCH(Assumptions!H$5,'Capital Costs'!$N$2:$T$2,0)) -> 2162.77092 | I50: =INDEX('Capital Costs'!$N$44:$T$44,1,MATCH(Assumptions!I$5,'Capital Costs'!$N$2:$T$2,0)) -> 5446.196347 | J50: =INDEX('Capital Costs'!$N$44:$T$44,1,MATCH(Assumptions!J$5,'Capital Costs'!$N$2:$T$2,0)) -> 1425.253592 | K50: =INDEX('Capital Costs'!$N$44:$T$44,1,MATCH(Assumptions!K$5,'Capital Costs'!$N$2:$T$2,0)) -> 909.0387224 | L50: =INDEX('Capital Costs'!$N$44:$T$44,1,MATCH(Assumptions!L$5,'Capital Costs'!$N$2:$T$2,0)) -> 1483.552737
B51: =MAX($B$9:B50)+1 -> 36 | C51: Non-Depreciable cost per kW ($ at construction start) | D51: 8.745434823 | E51: =TEXT(EDATE(45809,-$D$47),"mmm yyyy")&" $" -> Jan 2024 $ | F51: =INDEX('Capital Costs'!$N$47:$T$47,1,MATCH(Assumptions!F$5,'Capital Costs'!$N$2:$T$2,0)) -> 19.32578839 | G51: =INDEX('Capital Costs'!$N$47:$T$47,1,MATCH(Assumptions!G$5,'Capital Costs'!$N$2:$T$2,0)) -> 22.38600884 | H51: =INDEX('Capital Costs'!$N$47:$T$47,1,MATCH(Assumptions!H$5,'Capital Costs'!$N$2:$T$2,0)) -> 15.78370077 | I51: =INDEX('Capital Costs'!$N$47:$T$47,1,MATCH(Assumptions!I$5,'Capital Costs'!$N$2:$T$2,0)) -> 49.92455912 | J51: =INDEX('Capital Costs'!$N$47:$T$47,1,MATCH(Assumptions!J$5,'Capital Costs'!$N$2:$T$2,0)) -> 11.35912455 | K51: =INDEX('Capital Costs'!$N$47:$T$47,1,MATCH(Assumptions!K$5,'Capital Costs'!$N$2:$T$2,0)) -> 8.745434823 | L51: =INDEX('Capital Costs'!$N$47:$T$47,1,MATCH(Assumptions!L$5,'Capital Costs'!$N$2:$T$2,0)) -> 13.76420388
B52: =MAX($B$9:B51)+1 -> 37 | C52: EPC Cost Escalation Rate | D52: 0.007 | F52: 0.007 | G52: 0.007 | H52: 0.007 | I52: 0.007 | J52: 0.007 | K52: 0.007 | L52: 0.007
B53: =MAX($B$9:B52)+1 -> 38 | C53: Non-EPC Cost Escalation Rate | D53: 0.019 | F53: 0.019 | G53: 0.019 | H53: 0.019 | I53: 0.019 | J53: 0.019 | K53: 0.019 | L53: 0.019
B54: =MAX($B$9:B53)+1 -> 39 | C54: Fuel Inventory Escalation Rate | D54: 0.054 | F54: 0.054 | G54: 0.054 | H54: 0.054 | I54: 0.054 | J54: 0.054 | K54: 0.054 | L54: 0.054
B55: =MAX($B$9:B54)+1 -> 40 | C55: Ongoing Maintenance (2019$/MW-yr) | D55: 1000 | F55: 1000 | G55: 1000 | H55: 1000 | I55: 1000 | J55: 1000 | K55: 1000 | L55: 1000
B56: =MAX($B$9:B55)+1 -> 41 | C56: Fixed O&M LTSA (2019$/kW-yr) | D56: 22 | F56: 55.2 | G56: 35 | H56: 30 | I56: 82 | J56: 13 | K56: 22 | L56: 40
B57: =MAX($B$9:B56)+1 -> 42 | C57: Fixed O&M Escalation Rate | D57: 0.01
B58: =MAX($B$9:B57)+1 -> 43 | C58: Fixed O&M LTSA ($/kW-yr) | D58: 24.41496346 | F58: =((F55/1000)+F56)*(1+$D$57)^(2025-2019) -> 59.65743246 | G58: 38.21472542 | H58: 32.90712467 | I58: 88.1061725 | J58: 14.86128211 | K58: 24.41496346 | L58: 43.52232617
B60: Note: all dollar amounts are in capacity year dollars

Sheet Construction CF
A1: Drawdown Schedule and Construction Cash Flow
A3: Technology | B3: ='Controls & Results'!D8 -> Battery - ORTP
A6: Capital Draw Down Schedule
C7: =EDATE(45809,-B8+24) -> 2026-01-01 | D7: =EDATE(C7,1) -> 2026-02-01 | E7: =EDATE(D7,1) -> 2026-03-01 | F7: 2026-04-01 | G7: 2026-05-01 | H7: 2026-06-01 | I7: 2026-07-01 | J7: 2026-08-01 | K7: 2026-09-01 | L7: 2026-10-01 | M7: 2026-11-01 | N7: 2026-12-01 | O7: 2027-01-01 | P7: 2027-02-01 | Q7: 2027-03-01 | R7: 2027-04-01 | S7: 2027-05-01 | T7: 2027-06-01 | U7: 2027-07-01 | V7: 2027-08-01 | W7: 2027-09-01 | X7: 2027-10-01 | Y7: 2027-11-01 | Z7: 2027-12-01 | AA7: 2028-01-01 | AB7: 2028-02-01 | AC7: 2028-03-01 | AD7: 2028-04-01 | AE7: 2028-05-01 | AF7: 2028-06-01 | AG7: 2028-07-01 | AH7: 2028-08-01 | AI7: 2028-09-01 | AJ7: 2028-10-01 | AK7: 2028-11-01 | AL7: 2028-12-01 | AM7: 2029-01-01 | AN7: 2029-02-01 | AO7: 2029-03-01 | AP7: 2029-04-01 | AQ7: 2029-05-01 | AR7: 2029-06-01 | AS7: 2029-07-01 | AT7: 2029-08-01 | AU7: 2029-09-01 | AV7: 2029-10-01 | AW7: 2029-11-01 | AX7: 2029-12-01
A8: Month Count | B8: =COUNTIF(C8:AX8,1) -> 17 | C8: =IF(OR(C10>0,SUM(C$10:$AX$10)>0),1,0) -> 1 | D8: =IF(OR(D10>0,SUM(D$10:$AX$10)>0),1,0) -> 1 | E8: =IF(OR(E10>0,SUM(E$10:$AX$10)>0),1,0) -> 1 | F8: =IF(OR(F10>0,SUM(F$10:$AX$10)>0),1,0) -> 1 | G8: =IF(OR(G10>0,SUM(G$10:$AX$10)>0),1,0) -> 1 | H8: =IF(OR(H10>0,SUM(H$10:$AX$10)>0),1,0) -> 1 | I8: =IF(OR(I10>0,SUM(I$10:$AX$10)>0),1,0) -> 1 | J8: =IF(OR(J10>0,SUM(J$10:$AX$10)>0),1,0) -> 1 | K8: =IF(OR(K10>0,SUM(K$10:$AX$10)>0),1,0) -> 1 | L8: =IF(OR(L10>0,SUM(L$10:$AX$10)>0),1,0) -> 1 | M8: =IF(OR(M10>0,SUM(M$10:$AX$10)>0),1,0) -> 1 | N8: =IF(OR(N10>0,SUM(N$10:$AX$10)>0),1,0) -> 1 | O8: =IF(OR(O10>0,SUM(O$10:$AX$10)>0),1,0) -> 1 | P8: =IF(OR(P10>0,SUM(P$10:$AX$10)>0),1,0) -> 1 | Q8: =IF(OR(Q10>0,SUM(Q$10:$AX$10)>0),1,0) -> 1 | R8: =IF(OR(R10>0,SUM(R$10:$AX$10)>0),1,0) -> 1 | S8: =IF(OR(S10>0,SUM(S$10:$AX$10)>0),1,0) -> 1 | T8: =IF(OR(T10>0,SUM(T$10:$AX$10)>0),1,0) -> 0 | U8: =IF(OR(U10>0,SUM(U$10:$AX$10)>0),1,0) -> 0 | V8: =IF(OR(V10>0,SUM(V$10:$AX$10)>0),1,0) -> 0 | W8: =IF(OR(W10>0,SUM(W$10:$AX$10)>0),1,0) -> 0 | X8: =IF(OR(X10>0,SUM(X$10:$AX$10)>0),1,0) -> 0 | Y8: =IF(OR(Y10>0,SUM(Y$10:$AX$10)>0),1,0) -> 0 | Z8: =IF(OR(Z10>0,SUM(Z$10:$AX$10)>0),1,0) -> 0 | AA8: =IF(OR(AA10>0,SUM(AA$10:$AX$10)>0),1,0) -> 0 | AB8: =IF(OR(AB10>0,SUM(AB$10:$AX$10)>0),1,0) -> 0 | AC8: =IF(OR(AC10>0,SUM(AC$10:$AX$10)>0),1,0) -> 0 | AD8: =IF(OR(AD10>0,SUM(AD$10:$AX$10)>0),1,0) -> 0 | AE8: =IF(OR(AE10>0,SUM(AE$10:$AX$10)>0),1,0) -> 0 | AF8: =IF(OR(AF10>0,SUM(AF$10:$AX$10)>0),1,0) -> 0 | AG8: =IF(OR(AG10>0,SUM(AG$10:$AX$10)>0),1,0) -> 0 | AH8: =IF(OR(AH10>0,SUM(AH$10:$AX$10)>0),1,0) -> 0 | AI8: =IF(OR(AI10>0,SUM(AI$10:$AX$10)>0),1,0) -> 0 | AJ8: =IF(OR(AJ10>0,SUM(AJ$10:$AX$10)>0),1,0) -> 0 | AK8: =IF(OR(AK10>0,SUM(AK$10:$AX$10)>0),1,0) -> 0 | AL8: =IF(OR(AL10>0,SUM(AL$10:$AX$10)>0),1,0) -> 0 | AM8: =IF(OR(AM10>0,SUM(AM$10:$AX$10)>0),1,0) -> 0 | AN8: =IF(OR(AN10>0,SUM(AN$10:$AX$10)>0),1,0) -> 0 | AO8: =IF(OR(AO10>0,SUM(AO$10:$AX$10)>0),1,0) -> 0 | AP8: =IF(OR(AP10>0,SUM(AP$10:$AX$10)>0),1,0) -> 0 | AQ8: =IF(OR(AQ10>0,SUM(AQ$10:$AX$10)>0),1,0) -> 0 | AR8: =IF(OR(AR10>0,SUM(AR$10:$AX$10)>0),1,0) -> 0 | AS8: =IF(OR(AS10>0,SUM(AS$10:$AX$10)>0),1,0) -> 0 | AT8: =IF(OR(AT10>0,SUM(AT$10:$AX$10)>0),1,0) -> 0 | AU8: =IF(OR(AU10>0,SUM(AU$10:$AX$10)>0),1,0) -> 0 | AV8: =IF(OR(AV10>0,SUM(AV$10:$AX$10)>0),1,0) -> 0 | AW8: =IF(OR(AW10>0,SUM(AW$10:$AX$10)>0),1,0) -> 0 | AX8: =IF(OR(AX10>0,SUM(AX$10:$AX$10)>0),1,0) -> 0
A9: Construction Month | C9: 1 | D9: 2 | E9: 3 | F9: 4 | G9: 5 | H9: 6 | I9: 7 | J9: 8 | K9: 9 | L9: 10 | M9: 11 | N9: 12 | O9: 13 | P9: 14 | Q9: 15 | R9: 16 | S9: 17 | T9: 18 | U9: 19 | V9: 20 | W9: 21 | X9: 22 | Y9: 23 | Z9: 24 | AA9: 25 | AB9: 26 | AC9: 27 | AD9: 28 | AE9: 29 | AF9: 30 | AG9: 31 | AH9: 32 | AI9: 33 | AJ9: 34 | AK9: 35 | AL9: 36 | AM9: 37 | AN9: 38 | AO9: 39 | AP9: 40 | AQ9: 41 | AR9: 42 | AS9: 43 | AT9: 44 | AU9: 45 | AV9: 46 | AW9: 47 | AX9: 48 | AY9: Total
A10: Capital Draw Down | C10: =OFFSET(C13,MATCH($B$3,$A$13:$A$19,0)-1,0) -> 0.02 | D10: =OFFSET(D13,MATCH($B$3,$A$13:$A$19,0)-1,0) -> 0 | E10: 0.2 | F10: 0.05 | G10: 0 | H10: 0.02 | I10: 0 | J10: 0.02 | K10: 0.2 | L10: 0.02 | M10: 0.2 | N10: 0.02 | O10: 0.02 | P10: 0.02 | Q10: 0.075 | R10: 0.075 | S10: 0.06 | T10: 0 | U10: 0 | V10: 0 | W10: 0 | X10: 0 | Y10: 0 | Z10: 0 | AA10: 0 | AB10: 0 | AC10: 0 | AD10: 0 | AE10: 0 | AF10: 0 | AG10: 0 | AH10: 0 | AI10: 0 | AJ10: 0 | AK10: 0 | AL10: 0 | AM10: 0 | AN10: 0 | AO10: 0 | AP10: 0 | AQ10: 0 | AR10: 0 | AS10: 0 | AT10: 0 | AU10: 0 | AV10: 0 | AW10: 0 | AX10: 0 | AY10: =SUM(C10:AX10) -> 1
A13: =Assumptions!$F$5 -> CC - ORTP | C13: 0.005 | D13: 0.1 | E13: 0.05 | F13: 0.05 | G13: 0.065 | H13: 0.055 | I13: 0.065 | J13: 0.065 | K13: 0.075 | L13: 0.08 | M13: 0.075 | N13: 0.07 | O13: 0.07 | P13: 0.05 | Q13: 0.025 | R13: 0.02 | S13: 0.015 | T13: 0.01 | U13: 0.0075 | V13: 0.005 | W13: 0.0025 | X13: 0.0025 | Y13: 0.0025 | Z13: 0.0025 | AA13: 0.0025 | AB13: 0.0025 | AC13: 0.0025 | AD13: 0.025 | AY13: =SUM(C13:AX13) -> 1
A14: =Assumptions!$G$5 -> SC - ORTP | C14: 0.005 | D14: 0.125 | E14: 0.075 | F14: 0.1 | G14: 0.075 | H14: 0.05 | I14: 0.125 | J14: 0.11 | K14: 0.11 | L14: 0.075 | M14: 0.04 | N14: 0.025 | O14: 0.01 | P14: 0.01 | Q14: 0.01 | R14: 0.01 | S14: 0.005 | T14: 0.005 | U14: 0.005 | V14: 0.005 | W14: 0.025 | AY14: =SUM(C14:AX14) -> 1
A15: =Assumptions!$H$5 -> Onshore Wind - ORTP | C15: 0.025 | D15: 0 | E15: 0 | F15: 0 | G15: 0 | H15: 0.015 | I15: 0.2 | J15: 0 | K15: 0 | L15: 0.05 | M15: 0.4 | N15: 0.05 | O15: 0.025 | P15: 0.005 | Q15: 0.05 | R15: 0.075 | S15: 0.04 | T15: 0.03 | U15: 0.01 | V15: 0 | W15: 0.025 | AY15: =SUM(C15:AX15) -> 1
A16: =Assumptions!$I$5 -> Offshore Wind - ORTP | C16: =20%/12 -> 0.01666666667 | D16: 0.01666666667 | E16: 0.01666666667 | F16: 0.01666666667 | G16: 0.01666666667 | H16: 0.01666666667 | I16: 0.01666666667 | J16: 0.01666666667 | K16: 0.01666666667 | L16: 0.01666666667 | M16: 0.01666666667 | N16: 0.01666666667 | O16: =40%/12 -> 0.03333333333 | P16: 0.03333333333 | Q16: 0.03333333333 | R16: 0.03333333333 | S16: 0.03333333333 | T16: 0.03333333333 | U16: 0.03333333333 | V16: 0.03333333333 | W16: 0.03333333333 | X16: 0.03333333333 | Y16: 0.03333333333 | Z16: 0.03333333333 | AA16: =30%/12 -> 0.025 | AB16: 0.025 | AC16: 0.025 | AD16: 0.025 | AE16: 0.025 | AF16: 0.025 | AG16: 0.025 | AH16: 0.025 | AI16: 0.025 | AJ16: 0.025 | AK16: 0.025 | AL16: 0.025 | AM16: =10%/12 -> 0.008333333333 | AN16: 0.008333333333 | AO16: 0.008333333333 | AP16: 0.008333333333 | AQ16: 0.008333333333 | AR16: 0.008333333333 | AS16: 0.008333333333 | AT16: 0.008333333333 | AU16: 0.008333333333 | AV16: 0.008333333333 | AW16: 0.008333333333 | AX16: 0.008333333333 | AY16: =SUM(C16:AX16) -> 1
A17: =Assumptions!$J$5 -> Solar - ORTP | C17: 0.05 | D17: 0 | E17: 0 | F17: 0 | G17: 0 | H17: 0 | I17: 0 | J17: 0 | K17: 0 | L17: 0 | M17: 0 | N17: 0 | O17: 0 | P17: 0 | Q17: 0 | R17: 0 | S17: 0 | T17: 0 | U17: 0 | V17: 0 | W17: 0.15 | X17: 0.08 | Y17: 0.1 | Z17: 0.3 | AA17: 0.08 | AB17: 0.05 | AC17: 0.05 | AD17: 0.05 | AE17: 0.05 | AF17: 0.04 | AY17: =SUM(C17:AX17) -> 1
A18: =Assumptions!$K$5 -> Battery - ORTP | C18: 0.02 | D18: 0 | E18: 0.2 | F18: 0.05 | G18: 0 | H18: 0.02 | I18: 0 | J18: 0.02 | K18: 0.2 | L18: 0.02 | M18: 0.2 | N18: 0.02 | O18: 0.02 | P18: 0.02 | Q18: 0.075 | R18: 0.075 | S18: 0.06 | AY18: 1
A19: =Assumptions!$L$5 -> Co-located Resource - ORTP | C19: 0.05 | D19: 0 | E19: 0 | F19: 0 | G19: 0 | H19: 0 | I19: 0 | J19: 0 | K19: 0 | L19: 0 | M19: 0 | N19: 0 | O19: 0 | P19: 0 | Q19: 0 | R19: 0 | S19: 0 | T19: 0 | U19: 0 | V19: 0 | W19: 0.15 | X19: 0.075 | Y19: 0.1 | Z19: 0.3 | AA19: 0.075 | AB19: 0.05 | AC19: 0.05 | AD19: 0.05 | AE19: 0.05 | AF19: 0.05 | AY19: =SUM(C19:AX19) -> 1
A23: Construction Cash Flow
C25: =C7 -> 2026-01-01 | D25: =D7 -> 2026-02-01 | E25: 2026-03-01 | F25: 2026-04-01 | G25: 2026-05-01 | H25: 2026-06-01 | I25: 2026-07-01 | J25: 2026-08-01 | K25: 2026-09-01 | L25: 2026-10-01 | M25: 2026-11-01 | N25: 2026-12-01 | O25: 2027-01-01 | P25: 2027-02-01 | Q25: 2027-03-01 | R25: 2027-04-01 | S25: 2027-05-01 | T25: 2027-06-01 | U25: 2027-07-01 | V25: 2027-08-01 | W25: 2027-09-01 | X25: 2027-10-01 | Y25: 2027-11-01 | Z25: 2027-12-01 | AA25: 2028-01-01 | AB25: 2028-02-01 | AC25: 2028-03-01 | AD25: 2028-04-01 | AE25: 2028-05-01 | AF25: 2028-06-01 | AG25: 2028-07-01 | AH25: 2028-08-01 | AI25: 2028-09-01 | AJ25: 2028-10-01 | AK25: 2028-11-01 | AL25: 2028-12-01 | AM25: 2029-01-01 | AN25: 2029-02-01 | AO25: 2029-03-01 | AP25: 2029-04-01 | AQ25: 2029-05-01 | AR25: 2029-06-01 | AS25: 2029-07-01 | AT25: 2029-08-01 | AU25: 2029-09-01 | AV25: 2029-10-01 | AW25: 2029-11-01 | AX25: 2029-12-01
A26: Capital Costs
A27: ="Overnight Cost at beginning of construction ("&TEXT($C$25,"mmm-yyyy")&"$)" -> Overnight Cost at beginning of construction (Jan-2026$) | B27: =Assumptions!D50*1000*Assumptions!D15 -> 136355808.4 | C27: =$B$27*C10 -> 2727116.167 | D27: 0 | E27: 27271161.67 | F27: 6817790.418 | G27: 0 | H27: 2727116.167 | I27: 0 | J27: 2727116.167 | K27: 27271161.67 | L27: 2727116.167 | M27: 27271161.67 | N27: 2727116.167 | O27: 2727116.167 | P27: 2727116.167 | Q27: 10226685.63 | R27: 10226685.63 | S27: 8181348.502 | T27: 0 | U27: 0 | V27: 0 | W27: 0 | X27: 0 | Y27: 0 | Z27: 0 | AA27: 0 | AB27: 0 | AC27: 0 | AD27: 0 | AE27: 0 | AF27: 0 | AG27: 0 | AH27: 0 | AI27: 0 | AJ27: 0 | AK27: 0 | AL27: 0 | AM27: 0 | AN27: 0 | AO27: 0 | AP27: 0 | AQ27: 0 | AR27: 0 | AS27: 0 | AT27: 0 | AU27: 0 | AV27: 0 | AW27: 0 | AX27: 0
A28: Inflation Adjusted (nominal $) | C28: =C27*(1+Assumptions!$D$41)^(C9-1) -> 2727116.167 | D28: =D27*(1+Assumptions!$D$41)^(D9-1) -> 0 | E28: =E27*(1+Assumptions!$D$41)^(E9-1) -> 27361317.14 | F28: =F27*(1+Assumptions!$D$41)^(F9-1) -> 6851626.646 | G28: =G27*(1+Assumptions!$D$41)^(G9-1) -> 0 | H28: =H27*(1+Assumptions!$D$41)^(H9-1) -> 2749710.949 | I28: =I27*(1+Assumptions!$D$41)^(I9-1) -> 0 | J28: =J27*(1+Assumptions!$D$41)^(J9-1) -> 2758801.192 | K28: =K27*(1+Assumptions!$D$41)^(K9-1) -> 27633575.76 | L28: =L27*(1+Assumptions!$D$41)^(L9-1) -> 2767921.486 | M28: =M27*(1+Assumptions!$D$41)^(M9-1) -> 27724929.33 | N28: =N27*(1+Assumptions!$D$41)^(N9-1) -> 2777071.931 | O28: =O27*(1+Assumptions!$D$41)^(O9-1) -> 2781658.491 | P28: =P27*(1+Assumptions!$D$41)^(P9-1) -> 2786252.626 | Q28: =Q27*(1+Assumptions!$D$41)^(Q9-1) -> 10465703.81 | R28: =R27*(1+Assumptions!$D$41)^(R9-1) -> 10482988.77 | S28: =S27*(1+Assumptions!$D$41)^(S9-1) -> 8400241.821 | T28: =T27*(1+Assumptions!$D$41)^(T9-1) -> 0 | U28: =U27*(1+Assumptions!$D$41)^(U9-1) -> 0 | V28: =V27*(1+Assumptions!$D$41)^(V9-1) -> 0 | W28: =W27*(1+Assumptions!$D$41)^(W9-1) -> 0 | X28: =X27*(1+Assumptions!$D$41)^(X9-1) -> 0 | Y28: =Y27*(1+Assumptions!$D$41)^(Y9-1) -> 0 | Z28: =Z27*(1+Assumptions!$D$41)^(Z9-1) -> 0 | AA28: =AA27*(1+Assumptions!$D$41)^(AA9-1) -> 0 | AB28: =AB27*(1+Assumptions!$D$41)^(AB9-1) -> 0 | AC28: =AC27*(1+Assumptions!$D$41)^(AC9-1) -> 0 | AD28: =AD27*(1+Assumptions!$D$41)^(AD9-1) -> 0 | AE28: =AE27*(1+Assumptions!$D$41)^(AE9-1) -> 0 | AF28: =AF27*(1+Assumptions!$D$41)^(AF9-1) -> 0 | AG28: =AG27*(1+Assumptions!$D$41)^(AG9-1) -> 0 | AH28: =AH27*(1+Assumptions!$D$41)^(AH9-1) -> 0 | AI28: =AI27*(1+Assumptions!$D$41)^(AI9-1) -> 0 | AJ28: =AJ27*(1+Assumptions!$D$41)^(AJ9-1) -> 0 | AK28: =AK27*(1+Assumptions!$D$41)^(AK9-1) -> 0 | AL28: =AL27*(1+Assumptions!$D$41)^(AL9-1) -> 0 | AM28: =AM27*(1+Assumptions!$D$41)^(AM9-1) -> 0 | AN28: =AN27*(1+Assumptions!$D$41)^(AN9-1) -> 0 | AO28: =AO27*(1+Assumptions!$D$41)^(AO9-1) -> 0 | AP28: =AP27*(1+Assumptions!$D$41)^(AP9-1) -> 0 | AQ28: =AQ27*(1+Assumptions!$D$41)^(AQ9-1) -> 0 | AR28: =AR27*(1+Assumptions!$D$41)^(AR9-1) -> 0 | AS28: =AS27*(1+Assumptions!$D$41)^(AS9-1) -> 0 | AT28: =AT27*(1+Assumptions!$D$41)^(AT9-1) -> 0 | AU28: =AU27*(1+Assumptions!$D$41)^(AU9-1) -> 0 | AV28: =AV27*(1+Assumptions!$D$41)^(AV9-1) -> 0 | AW28: =AW27*(1+Assumptions!$D$41)^(AW9-1) -> 0 | AX28: =AX27*(1+Assumptions!$D$41)^(AX9-1) -> 0
A30: Interest
A31: =TEXT($C$25,"mmm-yyyy")&"$" -> Jan-2026$ | C31: =IF(C9>$B$8,0,B41*Assumptions!$D$46*Assumptions!$D$31) -> 0 | D31: =IF(D9>$B$8,0,C41*Assumptions!$D$46*Assumptions!$D$31) -> 6012.979277 | E31: =IF(E9>$B$8,0,D41*Assumptions!$D$46*Assumptions!$D$31) -> 6012.979277 | F31: =IF(F9>$B$8,0,E41*Assumptions!$D$46*Assumptions!$D$31) -> 66142.77204 | G31: =IF(G9>$B$8,0,F41*Assumptions!$D$46*Assumptions!$D$31) -> 81175.22023 | H31: =IF(H9>$B$8,0,G41*Assumptions!$D$46*Assumptions!$D$31) -> 81175.22023 | I31: =IF(I9>$B$8,0,H41*Assumptions!$D$46*Assumptions!$D$31) -> 87188.19951 | J31: =IF(J9>$B$8,0,I41*Assumptions!$D$46*Assumptions!$D$31) -> 87188.19951 | K31: =IF(K9>$B$8,0,J41*Assumptions!$D$46*Assumptions!$D$31) -> 93201.17879 | L31: =IF(L9>$B$8,0,K41*Assumptions!$D$46*Assumptions!$D$31) -> 153330.9716 | M31: =IF(M9>$B$8,0,L41*Assumptions!$D$46*Assumptions!$D$31) -> 159343.9508 | N31: =IF(N9>$B$8,0,M41*Assumptions!$D$46*Assumptions!$D$31) -> 219473.7436 | O31: =IF(O9>$B$8,0,N41*Assumptions!$D$46*Assumptions!$D$31) -> 225486.7229 | P31: =IF(P9>$B$8,0,O41*Assumptions!$D$46*Assumptions!$D$31) -> 231499.7021 | Q31: =IF(Q9>$B$8,0,P41*Assumptions!$D$46*Assumptions!$D$31) -> 237512.6814 | R31: =IF(R9>$B$8,0,Q41*Assumptions!$D$46*Assumptions!$D$31) -> 260061.3537 | S31: =IF(S9>$B$8,0,R41*Assumptions!$D$46*Assumptions!$D$31) -> 282610.026 | T31: =IF(T9>$B$8,0,S41*Assumptions!$D$46*Assumptions!$D$31) -> 0 | U31: =IF(U9>$B$8,0,T41*Assumptions!$D$46*Assumptions!$D$31) -> 0 | V31: =IF(V9>$B$8,0,U41*Assumptions!$D$46*Assumptions!$D$31) -> 0 | W31: =IF(W9>$B$8,0,V41*Assumptions!$D$46*Assumptions!$D$31) -> 0 | X31: =IF(X9>$B$8,0,W41*Assumptions!$D$46*Assumptions!$D$31) -> 0 | Y31: =IF(Y9>$B$8,0,X41*Assumptions!$D$46*Assumptions!$D$31) -> 0 | Z31: =IF(Z9>$B$8,0,Y41*Assumptions!$D$46*Assumptions!$D$31) -> 0 | AA31: =IF(AA9>$B$8,0,Z41*Assumptions!$D$46*Assumptions!$D$31) -> 0 | AB31: =IF(AB9>$B$8,0,AA41*Assumptions!$D$46*Assumptions!$D$31) -> 0 | AC31: =IF(AC9>$B$8,0,AB41*Assumptions!$D$46*Assumptions!$D$31) -> 0 | AD31: =IF(AD9>$B$8,0,AC41*Assumptions!$D$46*Assumptions!$D$31) -> 0 | AE31: =IF(AE9>$B$8,0,AD41*Assumptions!$D$46*Assumptions!$D$31) -> 0 | AF31: =IF(AF9>$B$8,0,AE41*Assumptions!$D$46*Assumptions!$D$31) -> 0 | AG31: =IF(AG9>$B$8,0,AF41*Assumptions!$D$46*Assumptions!$D$31) -> 0 | AH31: =IF(AH9>$B$8,0,AG41*Assumptions!$D$46*Assumptions!$D$31) -> 0 | AI31: =IF(AI9>$B$8,0,AH41*Assumptions!$D$46*Assumptions!$D$31) -> 0 | AJ31: =IF(AJ9>$B$8,0,AI41*Assumptions!$D$46*Assumptions!$D$31) -> 0 | AK31: =IF(AK9>$B$8,0,AJ41*Assumptions!$D$46*Assumptions!$D$31) -> 0 | AL31: =IF(AL9>$B$8,0,AK41*Assumptions!$D$46*Assumptions!$D$31) -> 0 | AM31: =IF(AM9>$B$8,0,AL41*Assumptions!$D$46*Assumptions!$D$31) -> 0 | AN31: =IF(AN9>$B$8,0,AM41*Assumptions!$D$46*Assumptions!$D$31) -> 0 | AO31: =IF(AO9>$B$8,0,AN41*Assumptions!$D$46*Assumptions!$D$31) -> 0 | AP31: =IF(AP9>$B$8,0,AO41*Assumptions!$D$46*Assumptions!$D$31) -> 0 | AQ31: =IF(AQ9>$B$8,0,AP41*Assumptions!$D$46*Assumptions!$D$31) -> 0 | AR31: =IF(AR9>$B$8,0,AQ41*Assumptions!$D$46*Assumptions!$D$31) -> 0 | AS31: =IF(AS9>$B$8,0,AR41*Assumptions!$D$46*Assumptions!$D$31) -> 0 | AT31: =IF(AT9>$B$8,0,AS41*Assumptions!$D$46*Assumptions!$D$31) -> 0 | AU31: =IF(AU9>$B$8,0,AT41*Assumptions!$D$46*Assumptions!$D$31) -> 0 | AV31: =IF(AV9>$B$8,0,AU41*Assumptions!$D$46*Assumptions!$D$31) -> 0 | AW31: =IF(AW9>$B$8,0,AV41*Assumptions!$D$46*Assumptions!$D$31) -> 0 | AX31: =IF(AX9>$B$8,0,AW41*Assumptions!$D$46*Assumptions!$D$31) -> 0
A32: Inflation Adjusted (nominal $) | C32: =C31*(1+Assumptions!$D$41)^(C9-1) -> 0 | D32: =D31*(1+Assumptions!$D$41)^(D9-1) -> 6022.910201 | E32: =E31*(1+Assumptions!$D$41)^(E9-1) -> 6032.857527 | F32: =F31*(1+Assumptions!$D$41)^(F9-1) -> 66471.03409 | G32: =G31*(1+Assumptions!$D$41)^(G9-1) -> 81712.82014 | H32: =H31*(1+Assumptions!$D$41)^(H9-1) -> 81847.77551 | I32: =I31*(1+Assumptions!$D$41)^(I9-1) -> 88055.76515 | J32: =J31*(1+Assumptions!$D$41)^(J9-1) -> 88201.19641 | K32: =K31*(1+Assumptions!$D$41)^(K9-1) -> 94439.75529 | L32: =L31*(1+Assumptions!$D$41)^(L9-1) -> 155625.2336 | M32: =M31*(1+Assumptions!$D$41)^(M9-1) -> 161995.2912 | N32: =N31*(1+Assumptions!$D$41)^(N9-1) -> 223494.0998 | O32: =O31*(1+Assumptions!$D$41)^(O9-1) -> 229996.4573 | P32: =P31*(1+Assumptions!$D$41)^(P9-1) -> 236519.6836 | Q32: =Q31*(1+Assumptions!$D$41)^(Q9-1) -> 243063.8297 | R32: =R31*(1+Assumptions!$D$41)^(R9-1) -> 266579.0608 | S32: =S31*(1+Assumptions!$D$41)^(S9-1) -> 290171.3035 | T32: =T31*(1+Assumptions!$D$41)^(T9-1) -> 0 | U32: =U31*(1+Assumptions!$D$41)^(U9-1) -> 0 | V32: =V31*(1+Assumptions!$D$41)^(V9-1) -> 0 | W32: =W31*(1+Assumptions!$D$41)^(W9-1) -> 0 | X32: =X31*(1+Assumptions!$D$41)^(X9-1) -> 0 | Y32: =Y31*(1+Assumptions!$D$41)^(Y9-1) -> 0 | Z32: =Z31*(1+Assumptions!$D$41)^(Z9-1) -> 0 | AA32: =AA31*(1+Assumptions!$D$41)^(AA9-1) -> 0 | AB32: =AB31*(1+Assumptions!$D$41)^(AB9-1) -> 0 | AC32: =AC31*(1+Assumptions!$D$41)^(AC9-1) -> 0 | AD32: =AD31*(1+Assumptions!$D$41)^(AD9-1) -> 0 | AE32: =AE31*(1+Assumptions!$D$41)^(AE9-1) -> 0 | AF32: =AF31*(1+Assumptions!$D$41)^(AF9-1) -> 0 | AG32: =AG31*(1+Assumptions!$D$41)^(AG9-1) -> 0 | AH32: =AH31*(1+Assumptions!$D$41)^(AH9-1) -> 0 | AI32: =AI31*(1+Assumptions!$D$41)^(AI9-1) -> 0 | AJ32: =AJ31*(1+Assumptions!$D$41)^(AJ9-1) -> 0 | AK32: =AK31*(1+Assumptions!$D$41)^(AK9-1) -> 0 | AL32: =AL31*(1+Assumptions!$D$41)^(AL9-1) -> 0 | AM32: =AM31*(1+Assumptions!$D$41)^(AM9-1) -> 0 | AN32: =AN31*(1+Assumptions!$D$41)^(AN9-1) -> 0 | AO32: =AO31*(1+Assumptions!$D$41)^(AO9-1) -> 0 | AP32: =AP31*(1+Assumptions!$D$41)^(AP9-1) -> 0 | AQ32: =AQ31*(1+Assumptions!$D$41)^(AQ9-1) -> 0 | AR32: =AR31*(1+Assumptions!$D$41)^(AR9-1) -> 0 | AS32: =AS31*(1+Assumptions!$D$41)^(AS9-1) -> 0 | AT32: =AT31*(1+Assumptions!$D$41)^(AT9-1) -> 0 | AU32: =AU31*(1+Assumptions!$D$41)^(AU9-1) -> 0 | AV32: =AV31*(1+Assumptions!$D$41)^(AV9-1) -> 0 | AW32: =AW31*(1+Assumptions!$D$41)^(AW9-1) -> 0 | AX32: =AX31*(1+Assumptions!$D$41)^(AX9-1) -> 0
A34: Non-Depreciable Assets
A35: ="Cost at beginning of construction ("&TEXT($C$25,"mmm-yyyy")&"$)" -> Cost at beginning of construction (Jan-2026$) | B35: =Assumptions!D51*1000*Assumptions!D15 -> 1311815.223 | C35: =$B$35*C10 -> 26236.30447 | D35: 0 | E35: 262363.0447 | F35: 65590.76117 | G35: 0 | H35: 26236.30447 | I35: 0 | J35: 26236.30447 | K35: 262363.0447 | L35: 26236.30447 | M35: 262363.0447 | N35: 26236.30447 | O35: 26236.30447 | P35: 26236.30447 | Q35: 98386.14176 | R35: 98386.14176 | S35: 78708.91341 | T35: 0 | U35: 0 | V35: 0 | W35: 0 | X35: 0 | Y35: 0 | Z35: 0 | AA35: 0 | AB35: 0 | AC35: 0 | AD35: 0 | AE35: 0 | AF35: 0 | AG35: 0 | AH35: 0 | AI35: 0 | AJ35: 0 | AK35: 0 | AL35: 0 | AM35: 0 | AN35: 0 | AO35: 0 | AP35: 0 | AQ35: 0 | AR35: 0 | AS35: 0 | AT35: 0 | AU35: 0 | AV35: 0 | AW35: 0 | AX35: 0
A36: Inflation Adjusted (nominal $) | C36: =C35*(1+Assumptions!$D$41)^(C9-1) -> 26236.30447 | D36: =D35*(1+Assumptions!$D$41)^(D9-1) -> 0 | E36: =E35*(1+Assumptions!$D$41)^(E9-1) -> 263230.3881 | F36: =F35*(1+Assumptions!$D$41)^(F9-1) -> 65916.28363 | G36: =G35*(1+Assumptions!$D$41)^(G9-1) -> 0 | H36: =H35*(1+Assumptions!$D$41)^(H9-1) -> 26453.67825 | I36: =I35*(1+Assumptions!$D$41)^(I9-1) -> 0 | J36: =J35*(1+Assumptions!$D$41)^(J9-1) -> 26541.13121 | K36: =K35*(1+Assumptions!$D$41)^(K9-1) -> 265849.6605 | L36: =L35*(1+Assumptions!$D$41)^(L9-1) -> 26628.87328 | M36: =M35*(1+Assumptions!$D$41)^(M9-1) -> 266728.5303 | N36: =N35*(1+Assumptions!$D$41)^(N9-1) -> 26716.90542 | O36: =O35*(1+Assumptions!$D$41)^(O9-1) -> 26761.03056 | P36: =P35*(1+Assumptions!$D$41)^(P9-1) -> 26805.22858 | Q36: =Q35*(1+Assumptions!$D$41)^(Q9-1) -> 100685.6235 | R36: =R35*(1+Assumptions!$D$41)^(R9-1) -> 100851.914 | S36: =S35*(1+Assumptions!$D$41)^(S9-1) -> 80814.78327 | T36: =T35*(1+Assumptions!$D$41)^(T9-1) -> 0 | U36: =U35*(1+Assumptions!$D$41)^(U9-1) -> 0 | V36: =V35*(1+Assumptions!$D$41)^(V9-1) -> 0 | W36: =W35*(1+Assumptions!$D$41)^(W9-1) -> 0 | X36: =X35*(1+Assumptions!$D$41)^(X9-1) -> 0 | Y36: =Y35*(1+Assumptions!$D$41)^(Y9-1) -> 0 | Z36: =Z35*(1+Assumptions!$D$41)^(Z9-1) -> 0 | AA36: =AA35*(1+Assumptions!$D$41)^(AA9-1) -> 0 | AB36: =AB35*(1+Assumptions!$D$41)^(AB9-1) -> 0 | AC36: =AC35*(1+Assumptions!$D$41)^(AC9-1) -> 0 | AD36: =AD35*(1+Assumptions!$D$41)^(AD9-1) -> 0 | AE36: =AE35*(1+Assumptions!$D$41)^(AE9-1) -> 0 | AF36: =AF35*(1+Assumptions!$D$41)^(AF9-1) -> 0 | AG36: =AG35*(1+Assumptions!$D$41)^(AG9-1) -> 0 | AH36: =AH35*(1+Assumptions!$D$41)^(AH9-1) -> 0 | AI36: =AI35*(1+Assumptions!$D$41)^(AI9-1) -> 0 | AJ36: =AJ35*(1+Assumptions!$D$41)^(AJ9-1) -> 0 | AK36: =AK35*(1+Assumptions!$D$41)^(AK9-1) -> 0 | AL36: =AL35*(1+Assumptions!$D$41)^(AL9-1) -> 0 | AM36: =AM35*(1+Assumptions!$D$41)^(AM9-1) -> 0 | AN36: =AN35*(1+Assumptions!$D$41)^(AN9-1) -> 0 | AO36: =AO35*(1+Assumptions!$D$41)^(AO9-1) -> 0 | AP36: =AP35*(1+Assumptions!$D$41)^(AP9-1) -> 0 | AQ36: =AQ35*(1+Assumptions!$D$41)^(AQ9-1) -> 0 | AR36: =AR35*(1+Assumptions!$D$41)^(AR9-1) -> 0 | AS36: =AS35*(1+Assumptions!$D$41)^(AS9-1) -> 0 | AT36: =AT35*(1+Assumptions!$D$41)^(AT9-1) -> 0 | AU36: =AU35*(1+Assumptions!$D$41)^(AU9-1) -> 0 | AV36: =AV35*(1+Assumptions!$D$41)^(AV9-1) -> 0 | AW36: =AW35*(1+Assumptions!$D$41)^(AW9-1) -> 0 | AX36: =AX35*(1+Assumptions!$D$41)^(AX9-1) -> 0
A38: Total Depreciable (Inflation Adjusted nominal$) | C38: =C32+C28-C36 -> 2700879.863 | D38: =D32+D28-D36 -> 6022.910201 | E38: 27104119.61 | F38: 6852181.396 | G38: 81712.82014 | H38: 2805105.046 | I38: 88055.76515 | J38: 2820461.257 | K38: 27462165.85 | L38: 2896917.846 | M38: 27620196.09 | N38: 2973849.125 | O38: 2984893.917 | P38: 2995967.081 | Q38: 10608082.01 | R38: 10648715.91 | S38: 8609598.341 | T38: 0 | U38: 0 | V38: 0 | W38: 0 | X38: 0 | Y38: 0 | Z38: 0 | AA38: 0 | AB38: 0 | AC38: 0 | AD38: 0 | AE38: 0 | AF38: 0 | AG38: 0 | AH38: 0 | AI38: 0 | AJ38: 0 | AK38: 0 | AL38: 0 | AM38: 0 | AN38: 0 | AO38: 0 | AP38: 0 | AQ38: =AQ32+AQ28-AQ36 -> 0 | AR38: 0 | AS38: 0 | AT38: 0 | AU38: 0 | AV38: 0 | AW38: 0 | AX38: 0
A39: Total Installed (Inflation Adjusted nominal$) | C39: =C32+C28 -> 2727116.167 | D39: =D32+D28 -> 6022.910201 | E39: 27367350 | F39: 6918097.68 | G39: 81712.82014 | H39: 2831558.724 | I39: 88055.76515 | J39: 2847002.388 | K39: 27728015.52 | L39: 2923546.719 | M39: 27886924.62 | N39: 3000566.03 | O39: 3011654.948 | P39: 3022772.309 | Q39: 10708767.64 | R39: 10749567.83 | S39: 8690413.124 | T39: 0 | U39: 0 | V39: 0 | W39: 0 | X39: 0 | Y39: 0 | Z39: 0 | AA39: 0 | AB39: 0 | AC39: 0 | AD39: 0 | AE39: 0 | AF39: 0 | AG39: 0 | AH39: 0 | AI39: 0 | AJ39: 0 | AK39: 0 | AL39: 0 | AM39: 0 | AN39: 0 | AO39: 0 | AP39: 0 | AQ39: =AQ32+AQ28 -> 0 | AR39: 0 | AS39: 0 | AT39: 0 | AU39: 0 | AV39: 0 | AW39: 0 | AX39: 0
A41: ="Aggregate Expenditure ("&TEXT($C$25,"mmm-yyyy")&"$)" -> Aggregate Expenditure (Jan-2026$) | C41: =C27 -> 2727116.167 | D41: =C41+D27 -> 2727116.167 | E41: =D41+E27 -> 29998277.84 | F41: 36816068.26 | G41: 36816068.26 | H41: 39543184.43 | I41: 39543184.43 | J41: 42270300.59 | K41: 69541462.27 | L41: 72268578.43 | M41: 99539740.11 | N41: 102266856.3 | O41: 104993972.4 | P41: 107721088.6 | Q41: 117947774.2 | R41: 128174459.9 | S41: 136355808.4 | T41: 136355808.4 | U41: 136355808.4 | V41: 136355808.4 | W41: 136355808.4 | X41: 136355808.4 | Y41: 136355808.4 | Z41: 136355808.4 | AA41: 136355808.4 | AB41: 136355808.4 | AC41: 136355808.4 | AD41: 136355808.4 | AE41: 136355808.4 | AF41: 136355808.4 | AG41: 136355808.4 | AH41: 136355808.4 | AI41: 136355808.4 | AJ41: 136355808.4 | AK41: 136355808.4 | AL41: 136355808.4 | AM41: 136355808.4 | AN41: 136355808.4 | AO41: 136355808.4 | AP41: =AO41+AP27 -> 136355808.4 | AQ41: =AP41+AQ27 -> 136355808.4 | AR41: =AQ41+AR27 -> 136355808.4 | AS41: =AR41+AS27 -> 136355808.4 | AT41: =AS41+AT27 -> 136355808.4 | AU41: =AT41+AU27 -> 136355808.4 | AV41: =AU41+AV27 -> 136355808.4 | AW41: =AV41+AW27 -> 136355808.4 | AX41: 136355808.4
A44: ="Depreciable Cost ("&TEXT(C25,"mmm-yyyy")&"$)" -> Depreciable Cost (Jan-2026$) | B44: =NPV(Assumptions!D40,'Construction CF'!C38:AX38) -> 131939231.2
A45: Depreciable Cost | B45: =B44*((1+Assumptions!D41)^('Construction CF'!$B$8)) -> 135693025.5
A46: Installed Cost | B46: =NPV(Assumptions!D40,'Construction CF'!C39:AX39)*((1+Assumptions!D41)^('Construction CF'!$B$8)) -> 136989534

Sheet Model
B2: Results | C2: ='Controls & Results'!D8 -> Battery - ORTP
C4: NPV | D4: $/kW-yr | E4: $/kW-mo
B5: Revenue
B6: Pay for Performance | C6: =NPV(Assumptions!$D$39,PFP!D8:W8) -> 22090232.8 | D6: =-PMT(Assumptions!$D$39,20,C6)/(Assumptions!$D$15*1000) -> 11.12385942 | E6: =D6/12 -> 0.9269882847
B7: Scarcity Adder | C7: =NPV(Assumptions!$D$39,Scarcity!D6:W6) -> 12339413.72 | D7: =-PMT(Assumptions!$D$39,20,C7)/(Assumptions!$D$15*1000) -> 6.213692031 | E7: =D7/12 -> 0.5178076692
B8: E&AS | C8: =-PV(Assumptions!$D$39,20,'E&AS'!D6) -> 149633255.3 | D8: =-PMT(Assumptions!$D$39,20,C8)/(Assumptions!$D$15*1000) -> 75.35001155 | E8: =D8/12 -> 6.279167629
B9: REC | C9: =-PV(Assumptions!$D$39,20,(Assumptions!$D$20*Assumptions!$D$18*8760*Assumptions!$D$16)) -> 0 | D9: =-PMT(Assumptions!$D$39,20,C9)/(Assumptions!$D$15*1000) -> 0 | E9: 0
B10: Capacity Revenue | C10: =-PV(Assumptions!$D$39,20,(C34*12*1000*Assumptions!$D$15)) -> 18801637.58 | D10: =-PMT(Assumptions!$D$39,20,C10)/(Assumptions!$D$15*1000) -> 9.467839257 | E10: 0.7889866047
B11: Total Revenue | C11: =SUM(C6:C10) -> 202864539.4 | D11: =SUM(D6:D10) -> 102.1554023 | E11: =SUM(E6:E10) -> 8.512950188
B13: Expenses
B14: Property Taxes | C14: =PV(Assumptions!$D$39,20,-(AVERAGE(Depreciation!$C$79:$V$79)*Assumptions!$D$12)) -> 2353866.395 | D14: =-PMT(Assumptions!$D$39,20,C14)/(Assumptions!$D$15*1000) -> 1.185323808 | E14: =D14/12 -> 0.09877698404
B15: Site Leasing | C15: =PV(Assumptions!$D$39,20,-(Assumptions!$D$14*Assumptions!$D$19)) -> 3309737.5 | D15: =-PMT(Assumptions!$D$39,20,C15)/(Assumptions!$D$15*1000) -> 1.666666667 | E15: =D15/12 -> 0.1388888889
B16: Insurance | C16: =PV(Assumptions!$D$39,20,-(Assumptions!$D$13*'Construction CF'!$B$46)) -> 5440792.774 | D16: =-PMT(Assumptions!$D$39,20,C16)/(Assumptions!$D$15*1000) -> 2.73979068 | E16: 0.22831589
B17: Fixed O&M (LTSA plus ongoing O&M) | C17: =PV(Assumptions!$D$39,20,-(Assumptions!$D$15*1000*Assumptions!$D$58)) -> 48484272.09 | D17: =-PMT(Assumptions!$D$39,20,C17)/(Assumptions!$D$15*1000) -> 24.41496346 | E17: 2.034580289
B18: Subtotal - Fixed Expenses | C18: =SUM(C14:C17) -> 59588668.75 | D18: =SUM(D14:D17) -> 30.00674462 | E18: =SUM(E14:E17) -> 2.500562052
B20: Net Income
B21: Operating Income | C21: =NPV(Assumptions!$D$39,Model!C45:V45) -> 23695200.39 | D21: =-PMT(Assumptions!$D$39,20,C21)/(Assumptions!$D$15*1000) -> 11.9320643 | E21: =D21/12 -> 0.9943386913
B22: Net Income Taxes | C22: =NPV(Assumptions!$D$39,Model!C49:V49) -> 6286336.664 | D22: =-PMT(Assumptions!$D$39,20,C22)/(Assumptions!$D$15*1000) -> 3.165576658 | E22: =D22/12 -> 0.2637980548
B23: Net Income | C23: =C21-C22 -> 17408863.73 | D23: =D21-D22 -> 8.766487638 | E23: =E21-E22 -> 0.7305406365
B25: Operating Cash Flow | C25: =C23+NPV(Assumptions!$D$39,Depreciation!C74:V74)+(Depreciation!$V$77+(Depreciation!$C$8-Depreciation!$C$7))*(1/(1+Assumptions!$D$39)^20) -> 136989534 | D25: =-PMT(Assumptions!$D$39,20,C25)/(Assumptions!$D$15*1000) -> 68.98308098 | E25: =D25/12 -> 5.748590081
B26: Less: Installed Cost | C26: ='Construction CF'!B46*-1 -> -136989534 | D26: =-PMT(Assumptions!$D$39,20,C26)/(Assumptions!$D$15*1000) -> -68.98308098 | E26: =D26/12 -> -5.748590081
B27: NPV | C27: =SUM(C25:C26) -> 0 | D27: =SUM(D25:D26) -> 0 | E27: =SUM(E25:E26) -> 0
B29: Levelized Annual Capacity Revenue Requirement After Tax | C29: =PMT(Assumptions!$D$39,20,C27,0,0) -> 0 | D29: =C29/(Assumptions!$D$15*1000) -> 0 | E29: =C29/(Assumptions!$D$15*1000)/12 -> 0
B30: Levelized Annual Capacity Revenue Requirement Before Tax | C30: =C29/(1-Assumptions!D30) -> 0 | D30: =C30/(Assumptions!$D$15*1000) -> 0 | E30: =C30/(Assumptions!$D$15*1000)/12 -> 0
B33: NPV ($/kW-month) | C33: =C30/(Assumptions!D15*1000)/12 -> 0 | D33: Installed
B34: Net CONE ($/kW-month)1 | C34: 0.7889866047 | D34: Installed
B36: Net CONE ($/kW-month) | C36: =C34/Assumptions!D17 -> 0.7889866047 | D36: Qualified
B41: Tax Calculation and Cash Flow
C43: 2026 | D43: =C43+1 -> 2027 | E43: 2028 | F43: 2029 | G43: =F43+1 -> 2030 | H43: 2031 | I43: 2032 | J43: 2033 | K43: 2034 | L43: 2035 | M43: 2036 | N43: 2037 | O43: 2038 | P43: 2039 | Q43: 2040 | R43: 2041 | S43: 2042 | T43: =S43+1 -> 2043 | U43: =T43+1 -> 2044 | V43: =U43+1 -> 2045
B45: Operating Income | C45: =Scarcity!D6+PFP!D8+'E&AS'!$D$6+($C$34*12*1000*Assumptions!$D$15)-PMT(Assumptions!$D$39,20,Model!$C$9)+PMT(Assumptions!$D$39,20,Model!$C$18)-Depreciation!C74 -> -31641858.36 | D45: =Scarcity!E6+PFP!E8+'E&AS'!$D$6+($C$34*12*1000*Assumptions!$D$15)-PMT(Assumptions!$D$39,20,Model!$C$9)+PMT(Assumptions!$D$39,20,Model!$C$18)-Depreciation!D74 -> -15630461.15 | E45: =Scarcity!F6+PFP!F8+'E&AS'!$D$6+($C$34*12*1000*Assumptions!$D$15)-PMT(Assumptions!$D$39,20,Model!$C$9)+PMT(Assumptions!$D$39,20,Model!$C$18)-Depreciation!E74 -> -8085237.028 | F45: =Scarcity!G6+PFP!G8+'E&AS'!$D$6+($C$34*12*1000*Assumptions!$D$15)-PMT(Assumptions!$D$39,20,Model!$C$9)+PMT(Assumptions!$D$39,20,Model!$C$18)-Depreciation!F74 -> -2612015.461 | G45: =Scarcity!H6+PFP!H8+'E&AS'!$D$6+($C$34*12*1000*Assumptions!$D$15)-PMT(Assumptions!$D$39,20,Model!$C$9)+PMT(Assumptions!$D$39,20,Model!$C$18)-Depreciation!G74 -> 1199095.125 | H45: =Scarcity!I6+PFP!I8+'E&AS'!$D$6+($C$34*12*1000*Assumptions!$D$15)-PMT(Assumptions!$D$39,20,Model!$C$9)+PMT(Assumptions!$D$39,20,Model!$C$18)-Depreciation!H74 -> 1157571.373 | I45: =Scarcity!J6+PFP!J8+'E&AS'!$D$6+($C$34*12*1000*Assumptions!$D$15)-PMT(Assumptions!$D$39,20,Model!$C$9)+PMT(Assumptions!$D$39,20,Model!$C$18)-Depreciation!I74 -> 1193398.938 | J45: =Scarcity!K6+PFP!K8+'E&AS'!$D$6+($C$34*12*1000*Assumptions!$D$15)-PMT(Assumptions!$D$39,20,Model!$C$9)+PMT(Assumptions!$D$39,20,Model!$C$18)-Depreciation!J74 -> 5993514.024 | K45: =Scarcity!L6+PFP!L8+'E&AS'!$D$6+($C$34*12*1000*Assumptions!$D$15)-PMT(Assumptions!$D$39,20,Model!$C$9)+PMT(Assumptions!$D$39,20,Model!$C$18)-Depreciation!K74 -> 10783798.52 | L45: =Scarcity!M6+PFP!M8+'E&AS'!$D$6+($C$34*12*1000*Assumptions!$D$15)-PMT(Assumptions!$D$39,20,Model!$C$9)+PMT(Assumptions!$D$39,20,Model!$C$18)-Depreciation!L74 -> 10831595.79 | M45: =Scarcity!N6+PFP!N8+'E&AS'!$D$6+($C$34*12*1000*Assumptions!$D$15)-PMT(Assumptions!$D$39,20,Model!$C$9)+PMT(Assumptions!$D$39,20,Model!$C$18)-Depreciation!M74 -> 10780420.69 | N45: =Scarcity!O6+PFP!O8+'E&AS'!$D$6+($C$34*12*1000*Assumptions!$D$15)-PMT(Assumptions!$D$39,20,Model!$C$9)+PMT(Assumptions!$D$39,20,Model!$C$18)-Depreciation!N74 -> 10730249.03 | O45: =Scarcity!P6+PFP!P8+'E&AS'!$D$6+($C$34*12*1000*Assumptions!$D$15)-PMT(Assumptions!$D$39,20,Model!$C$9)+PMT(Assumptions!$D$39,20,Model!$C$18)-Depreciation!O74 -> 10779096.28 | P45: =Scarcity!Q6+PFP!Q8+'E&AS'!$D$6+($C$34*12*1000*Assumptions!$D$15)-PMT(Assumptions!$D$39,20,Model!$C$9)+PMT(Assumptions!$D$39,20,Model!$C$18)-Depreciation!P74 -> 10728950.59 | Q45: =Scarcity!R6+PFP!R8+'E&AS'!$D$6+($C$34*12*1000*Assumptions!$D$15)-PMT(Assumptions!$D$39,20,Model!$C$9)+PMT(Assumptions!$D$39,20,Model!$C$18)-Depreciation!Q74 -> 10679788.15 | R45: =Scarcity!S6+PFP!S8+'E&AS'!$D$6+($C$34*12*1000*Assumptions!$D$15)-PMT(Assumptions!$D$39,20,Model!$C$9)+PMT(Assumptions!$D$39,20,Model!$C$18)-Depreciation!R74 -> 10729624.83 | S45: =Scarcity!T6+PFP!T8+'E&AS'!$D$6+($C$34*12*1000*Assumptions!$D$15)-PMT(Assumptions!$D$39,20,Model!$C$9)+PMT(Assumptions!$D$39,20,Model!$C$18)-Depreciation!S74 -> 10680449.17 | T45: =Scarcity!U6+PFP!U8+'E&AS'!$D$6+($C$34*12*1000*Assumptions!$D$15)-PMT(Assumptions!$D$39,20,Model!$C$9)+PMT(Assumptions!$D$39,20,Model!$C$18)-Depreciation!T74 -> 10632237.73 | U45: =Scarcity!V6+PFP!V8+'E&AS'!$D$6+($C$34*12*1000*Assumptions!$D$15)-PMT(Assumptions!$D$39,20,Model!$C$9)+PMT(Assumptions!$D$39,20,Model!$C$18)-Depreciation!U74 -> 10683006.78 | V45: =Scarcity!W6+PFP!W8+'E&AS'!$D$6+($C$34*12*1000*Assumptions!$D$15)-PMT(Assumptions!$D$39,20,Model!$C$9)+PMT(Assumptions!$D$39,20,Model!$C$18)-Depreciation!V74 -> 10634745.19
B46: Income Taxes | C46: =IF(C45>0,C45*Assumptions!$D$30,0) -> 0 | D46: =IF(D45>0,D45*Assumptions!$D$30,0) -> 0 | E46: =IF(E45>0,E45*Assumptions!$D$30,0) -> 0 | F46: =IF(F45>0,F45*Assumptions!$D$30,0) -> 0 | G46: =IF(G45>0,G45*Assumptions!$D$30,0) -> 318119.9367 | H46: =IF(H45>0,H45*Assumptions!$D$30,0) -> 307103.6851 | I46: =IF(I45>0,I45*Assumptions!$D$30,0) -> 316608.7383 | J46: =IF(J45>0,J45*Assumptions!$D$30,0) -> 1590079.271 | K46: =IF(K45>0,K45*Assumptions!$D$30,0) -> 2860941.748 | L46: =IF(L45>0,L45*Assumptions!$D$30,0) -> 2873622.362 | M46: =IF(M45>0,M45*Assumptions!$D$30,0) -> 2860045.609 | N46: =IF(N45>0,N45*Assumptions!$D$30,0) -> 2846735.067 | O46: =IF(O45>0,O45*Assumptions!$D$30,0) -> 2859694.244 | P46: =IF(P45>0,P45*Assumptions!$D$30,0) -> 2846390.592 | Q46: =IF(Q45>0,Q45*Assumptions!$D$30,0) -> 2833347.795 | R46: =IF(R45>0,R45*Assumptions!$D$30,0) -> 2846569.468 | S46: =IF(S45>0,S45*Assumptions!$D$30,0) -> 2833523.164 | T46: =IF(T45>0,T45*Assumptions!$D$30,0) -> 2820732.67 | U46: =IF(U45>0,U45*Assumptions!$D$30,0) -> 2834201.698 | V46: =IF(V45>0,V45*Assumptions!$D$30,0) -> 2821397.899
B47: Tax Benefit | C47: =IF(C45<0,-C45*Assumptions!$D$30,0) -> 8394585.022 | D47: =IF(D45<0,-D45*Assumptions!$D$30,0) -> 4146761.343 | E47: =IF(E45<0,-E45*Assumptions!$D$30,0) -> 2145013.384 | F47: =IF(F45<0,-F45*Assumptions!$D$30,0) -> 692967.7019 | G47: =IF(G45<0,-G45*Assumptions!$D$30,0) -> 0 | H47: =IF(H45<0,-H45*Assumptions!$D$30,0) -> 0 | I47: =IF(I45<0,-I45*Assumptions!$D$30,0) -> 0 | J47: =IF(J45<0,-J45*Assumptions!$D$30,0) -> 0 | K47: =IF(K45<0,-K45*Assumptions!$D$30,0) -> 0 | L47: =IF(L45<0,-L45*Assumptions!$D$30,0) -> 0 | M47: =IF(M45<0,-M45*Assumptions!$D$30,0) -> 0 | N47: =IF(N45<0,-N45*Assumptions!$D$30,0) -> 0 | O47: =IF(O45<0,-O45*Assumptions!$D$30,0) -> 0 | P47: =IF(P45<0,-P45*Assumptions!$D$30,0) -> 0 | Q47: =IF(Q45<0,-Q45*Assumptions!$D$30,0) -> 0 | R47: =IF(R45<0,-R45*Assumptions!$D$30,0) -> 0 | S47: =IF(S45<0,-S45*Assumptions!$D$30,0) -> 0 | T47: =IF(T45<0,-T45*Assumptions!$D$30,0) -> 0 | U47: =IF(U45<0,-U45*Assumptions!$D$30,0) -> 0 | V47: =IF(V45<0,-V45*Assumptions!$D$30,0) -> 0
B48: ITC | C48: ='Construction CF'!B46*Assumptions!D21 -> 0
B49: Net Income Taxes | C49: =C46-C47-C48 -> -8394585.022 | D49: =D46-D47-D48 -> -4146761.343 | E49: -2145013.384 | F49: -692967.7019 | G49: 318119.9367 | H49: 307103.6851 | I49: 316608.7383 | J49: 1590079.271 | K49: 2860941.748 | L49: 2873622.362 | M49: 2860045.609 | N49: 2846735.067 | O49: 2859694.244 | P49: 2846390.592 | Q49: 2833347.795 | R49: 2846569.468 | S49: 2833523.164 | T49: 2820732.67 | U49: 2834201.698 | V49: 2821397.899
B53: Notes:
B54: 1. Net CONE (Installed) in this cell is calculated and pasted when the model is run, based on an NPV of zero.

Sheet Capital Costs
A1: Capital Costs | B1: 2019$ | C1: 2019$ | D1: 2019$ | E1: 2019$ | F1: 2019$ | G1: 2019$ | H1: 2019$ | J1: CC & SC | K1: Onshore Wind | L1: Solar | M1: Battery
A2: 2025 | B2: =Assumptions!F$5 -> CC - ORTP | C2: =Assumptions!G$5 -> SC - ORTP | D2: =Assumptions!H$5 -> Onshore Wind - ORTP | E2: =Assumptions!I$5 -> Offshore Wind - ORTP | F2: =Assumptions!J$5 -> Solar - ORTP | G2: =Assumptions!K$5 -> Battery - ORTP | H2: =Assumptions!L$5 -> Co-located Resource - ORTP | J2: BLS PPI WPU114 | K2: Bloomberg LCOE | L2: Bloomberg LCOE | M2: Bloomberg LCOE | N2: =B2 -> CC - ORTP | O2: SC - ORTP | P2: Onshore Wind - ORTP | Q2: Offshore Wind - ORTP | R2: Solar - ORTP | S2: Battery - ORTP | T2: Co-located Resource - ORTP
A3: Cost Component | B3: 7HA.02 Combined Cycle (ORTP) | C3: 7HA.02 Simple Cycle (ORTP) | D3: Onshore Wind (ORTP) | E3: Offshore Wind | F3: Solar | G3: Battery | H3: Co-located Resource | I3: BLS PPI Escalation Rate | N3: 7HA.02 Combined Cycle (ORTP) | O3: 7HA.02 Simple Cycle (ORTP) | P3: Onshore Wind (ORTP) | Q3: Offshore Wind | R3: Solar | S3: Battery | T3: Co-located Resource
A4: Construction Months | B4: =COUNTIF('Construction CF'!$C13:$AX13,"<>"&"") -> 28 | C4: =COUNTIF('Construction CF'!$C14:$AX14,"<>"&"") -> 21 | D4: =COUNTIF('Construction CF'!$C15:$AX15,"<>"&"") -> 21 | E4: =COUNTIF('Construction CF'!$C16:$AX16,"<>"&"") -> 48 | F4: =COUNTIF('Construction CF'!$C17:$AX17,"<>"&"") -> 30 | G4: =COUNTIF('Construction CF'!$C18:$AX18,"<>"&"") -> 17 | H4: =COUNTIF('Construction CF'!$C19:$AX19,"<>"&"") -> 30
A5: Years to Escalate to Beginning of Construction | B5: =A2-(B4/12)-2019 -> 3.666666667 | C5: =A2-(C4/12)-2019 -> 4.25 | D5: =A2-(D4/12)-2019 -> 4.25 | E5: =A2-(E4/12)-2019 -> 2 | F5: =A2-(F4/12)-2019 -> 3.5 | G5: =A2-(G4/12)-2019 -> 4.583333333 | H5: =A2-(H4/12)-2019 -> 3.5 | N5: =TEXT(EDATE(45809,-B$4+24),"mmm yyyy")&" $" -> Feb 2025 $ | O5: =TEXT(EDATE(45809,-C$4+24),"mmm yyyy")&" $" -> Sep 2025 $ | P5: =TEXT(EDATE(45809,-D$4+24),"mmm yyyy")&" $" -> Sep 2025 $ | Q5: =TEXT(EDATE(45809,-E$4+12),"mmm yyyy")&" $" -> Jun 2022 $ | R5: =TEXT(EDATE(45809,-F$4+24),"mmm yyyy")&" $" -> Dec 2024 $ | S5: =TEXT(EDATE(45809,-G$4+24),"mmm yyyy")&" $" -> Jan 2026 $ | T5: =TEXT(EDATE(45809,-H$4+12),"mmm yyyy")&" $" -> Dec 2023 $
A7: EPC Costs | I7: =Assumptions!$D$52 -> 0.007
A8: Civil/Structural/Architectural | B8: 49040011.78 | C8: 18868655.91 | D8: =78450000+5625000 -> 84075000 | F8: 1291792.397 | G8: 423748.4924 | H8: 613487.5599 | J8: =BLS!$D$74 -> 1.040694558 | K8: ='BB LCOE'!$A$6 -> 0.986280261 | L8: ='BB LCOE'!$A$4 -> 0.9037022775 | M8: ='BB LCOE'!$A$5 -> 0.9341098999 | N8: =B8*J8*(1+$I$7)^B$5 -> 52357862.48 | O8: =C8*$J8*(1+$I$7)^C$5 -> 20227373.7 | P8: =D8*K8*(1+$I$7)^D$5 -> 85416636.75 | Q8: =E8*(1+$I$7)^E$5 -> 0 | R8: =F8*L8*(1+$I$7)^F$5 -> 1196248.063 | S8: =G8*M8*(1+$I$7)^G$5 -> 408687.3679 | T8: =H8*(1+$I$7)^H$5 -> 628649.9822
A9: Mechanical Costs | B9: 267032120.1 | C9: 137734983.9 | D9: 4300000 | J9: =BLS!$D$74 -> 1.040694558 | K9: ='BB LCOE'!$A$6 -> 0.986280261 | L9: ='BB LCOE'!$A$4 -> 0.9037022775 | M9: ='BB LCOE'!$A$5 -> 0.9341098999 | N9: 285098443.3 | O9: 147653177 | P9: 4368617.758 | Q9: 0 | R9: 0 | S9: 0 | T9: =H9*(1+$I$7)^H$5 -> 0
A10: Electrical/Instrumentation Costs | B10: 54036721.76 | C10: 27852487.41 | D10: 11328780 | F10: 1578383.76 | G10: 1293968.65 | H10: 531828.2579 | J10: =BLS!$D$74 -> 1.040694558 | K10: ='BB LCOE'!$A$6 -> 0.986280261 | L10: ='BB LCOE'!$A$4 -> 0.9037022775 | M10: ='BB LCOE'!$A$5 -> 0.9341098999 | N10: 57692629.83 | O10: 29858124.18 | P10: 11509560.35 | Q10: 0 | R10: 1461642.382 | S10: 1247977.636 | T10: =H10*(1+$I$7)^H$5 -> 544972.4603
A11: Construction Management | B11: 11414582 | C11: 7590308.2 | D11: 2400000 | F11: 804249.9769 | G11: 1467930.466 | H11: 818923.9098 | J11: =BLS!$D$74 -> 1.040694558 | K11: ='BB LCOE'!$A$6 -> 0.986280261 | L11: ='BB LCOE'!$A$4 -> 0.9037022775 | M11: ='BB LCOE'!$A$5 -> 0.9341098999 | N11: 12186846.88 | O11: 8136880.613 | P11: 2438298.284 | Q11: 0 | R11: 744765.5519 | S11: 1415756.396 | T11: =H11*(1+$I$7)^H$5 -> 839163.7173
A12: Other Project Costs | B12: 29015000 | C12: 12450000 | J12: =BLS!$D$74 -> 1.040694558 | K12: ='BB LCOE'!$A$6 -> 0.986280261 | L12: ='BB LCOE'!$A$4 -> 0.9037022775 | M12: ='BB LCOE'!$A$5 -> 0.9341098999 | N12: 30978038.64 | O12: 13346515.18 | P12: 0 | Q12: 0 | R12: 0 | S12: 0 | T12: =H12*(1+$I$7)^H$5 -> 0
J13: =BLS!$D$74 -> 1.040694558 | K13: ='BB LCOE'!$A$6 -> 0.986280261 | L13: ='BB LCOE'!$A$4 -> 0.9037022775 | M13: ='BB LCOE'!$A$5 -> 0.9341098999 | N13: 0 | O13: 0 | P13: 0 | Q13: 0 | R13: 0 | S13: 0
A14: Medium Voltage Collection System | D14: 5730000 | J14: =BLS!$D$74 -> 1.040694558 | K14: ='BB LCOE'!$A$6 -> 0.986280261 | L14: ='BB LCOE'!$A$4 -> 0.9037022775 | M14: ='BB LCOE'!$A$5 -> 0.9341098999 | N14: 0 | O14: 0 | P14: 5821437.153 | Q14: 0 | R14: 0 | S14: 0 | T14: =H14*(1+$I$7)^H$5 -> 0
A15: Project Substation and O&M Building | D15: 5350000 | G15: 6828904.754 | J15: =BLS!$D$74 -> 1.040694558 | K15: ='BB LCOE'!$A$6 -> 0.986280261 | L15: ='BB LCOE'!$A$4 -> 0.9037022775 | M15: ='BB LCOE'!$A$5 -> 0.9341098999 | N15: 0 | O15: 0 | P15: 5435373.258 | Q15: 0 | R15: 0 | S15: 6586187.702 | T15: 0
A16: Meterological Towers | D16: 421000 | J16: =BLS!$D$74 -> 1.040694558 | K16: ='BB LCOE'!$A$6 -> 0.986280261 | L16: ='BB LCOE'!$A$4 -> 0.9037022775 | M16: ='BB LCOE'!$A$5 -> 0.9341098999 | N16: 0 | O16: 0 | P16: 427718.1573 | Q16: 0 | R16: 0 | S16: 0 | T16: 0
A17: Offshore Substation Platform | E17: 465000000 | J17: =BLS!$D$74 -> 1.040694558 | K17: ='BB LCOE'!$A$6 -> 0.986280261 | L17: ='BB LCOE'!$A$4 -> 0.9037022775 | M17: ='BB LCOE'!$A$5 -> 0.9341098999 | N17: 0 | O17: 0 | P17: 0 | Q17: 471532785 | R17: 0 | S17: 0 | T17: 0
A18: Install Submarine Export Cabling | E18: 583000000 | J18: =BLS!$D$74 -> 1.040694558 | K18: ='BB LCOE'!$A$6 -> 0.986280261 | L18: ='BB LCOE'!$A$4 -> 0.9037022775 | M18: ='BB LCOE'!$A$5 -> 0.9341098999 | N18: 0 | O18: 0 | P18: 0 | Q18: 591190567 | R18: 0 | S18: 0 | T18: 0
A19: Construct Landfall Transition Box | E19: 40000000 | J19: =BLS!$D$74 -> 1.040694558 | K19: ='BB LCOE'!$A$6 -> 0.986280261 | L19: ='BB LCOE'!$A$4 -> 0.9037022775 | M19: ='BB LCOE'!$A$5 -> 0.9341098999 | N19: 0 | O19: 0 | P19: 0 | Q19: 40561960 | R19: 0 | S19: 0 | T19: 0
A20: Interarray Cabling | E20: 242250000 | J20: =BLS!$D$74 -> 1.040694558 | K20: ='BB LCOE'!$A$6 -> 0.986280261 | L20: ='BB LCOE'!$A$4 -> 0.9037022775 | M20: ='BB LCOE'!$A$5 -> 0.9341098999 | N20: 0 | O20: 0 | P20: 0 | Q20: 245653370.2 | R20: 0 | S20: 0 | T20: 0
A21: Major Equipment - Wind Turbines, PV Modules, PV Inverters, PV Racks, Batteries | E21: 2333000000 | F21: 15130733.84 | G21: 101550687.9 | H21: 7233943.784 | J21: =BLS!$D$74 -> 1.040694558 | K21: ='BB LCOE'!$A$6 -> 0.986280261 | L21: ='BB LCOE'!$A$4 -> 0.9037022775 | M21: ='BB LCOE'!$A$5 -> 0.9341098999 | N21: 0 | O21: 0 | P21: 0 | Q21: 2365776317 | R21: 14011625.33 | S21: 97941312.14 | T21: 7412731.616
A22: Solar SCADA & Monitoring | F22: 245333.413 | H22: 219683.5889 | J22: =BLS!$D$74 -> 1.040694558 | K22: ='BB LCOE'!$A$6 -> 0.986280261 | L22: ='BB LCOE'!$A$4 -> 0.9037022775 | M22: ='BB LCOE'!$A$5 -> 0.9341098999 | N22: 0 | O22: 0 | P22: 0 | Q22: 0 | R22: 227187.9142 | S22: 0 | T22: 225113.0965
A23: Testing & Energization | F23: 143129.7923 | G23: 291725.57 | H23: 77623.54046 | J23: =BLS!$D$74 -> 1.040694558 | K23: ='BB LCOE'!$A$6 -> 0.986280261 | L23: ='BB LCOE'!$A$4 -> 0.9037022775 | M23: ='BB LCOE'!$A$5 -> 0.9341098999 | N23: 0 | O23: 0 | P23: 0 | Q23: 0 | R23: 132543.5397 | S23: 281356.8838 | T23: 79542.01604
A24: Other Indirect Costs | F24: 2476527 | G24: 10171811.09 | H24: 1719841.152 | J24: =BLS!$D$74 -> 1.040694558 | K24: ='BB LCOE'!$A$6 -> 0.986280261 | L24: ='BB LCOE'!$A$4 -> 0.9037022775 | M24: ='BB LCOE'!$A$5 -> 0.9341098999 | N24: 0 | O24: 0 | P24: 0 | Q24: 0 | R24: 2293356.607 | S24: 9810278.449 | T24: 1762347.243
A25: Project Contingency | B25: 24632306 | C25: 12269786 | D25: =SUM(D8:D24)*7% -> 7952334.6 | E25: =SUM(E10:E24)*5% -> 183162500 | F25: =(22464508)*5% -> 1123225.4 | G25: 5834216.541 | H25: 1020709.134 | J25: =BLS!$D$74 -> 1.040694558 | K25: ='BB LCOE'!$A$6 -> 0.986280261 | L25: ='BB LCOE'!$A$4 -> 0.9037022775 | M25: ='BB LCOE'!$A$5 -> 0.9341098999 | N25: 26298829.12 | O25: 13153324.11 | P25: 8079234.92 | Q25: 185735750 | R25: 1040148.721 | S25: 5626853.298 | T25: 1045936.089
A26: EPC Contractor Fee | B26: 20888195 | C26: 10404778 | J26: =BLS!$D$74 -> 1.040694558 | K26: ='BB LCOE'!$A$6 -> 0.986280261 | L26: ='BB LCOE'!$A$4 -> 0.9037022775 | M26: ='BB LCOE'!$A$5 -> 0.9341098999 | N26: 22301406.58 | O26: 11154018.28 | P26: 0 | Q26: 0 | R26: 0 | S26: 0 | T26: 0
A27: Owners Development Costs | D27: 320000 | F27: 743013.5898 | G27: 964833.5604 | H27: 650651.1966 | J27: =BLS!$D$74 -> 1.040694558 | K27: ='BB LCOE'!$A$6 -> 0.986280261 | L27: ='BB LCOE'!$A$4 -> 0.9037022775 | M27: ='BB LCOE'!$A$5 -> 0.9341098999 | N27: 0 | O27: 0 | P27: 325106.4378 | Q27: 0 | R27: 688058.3677 | S27: 930540.8641 | T27: 666732.1228
A28: Total EPC | B28: =SUM(B8:B27) -> 456058936.6 | C28: 227170999.4 | D28: 121877114.6 | E28: 3846412500 | F28: 23536389.17 | G28: 128827827.1 | H28: 12886692.12 | N28: =SUM(N7:N27) -> 486914056.9 | O28: 243529413.1 | P28: 123821983.1 | Q28: 3900450749 | R28: 21795576.47 | S28: 124248950.7 | T28: 13205188.34
A30: Non-EPC Costs | I30: =Assumptions!$D$53 -> 0.019
A31: Owner's Development Costs (Services) | E31: =E28*5% -> 192320625 | J31: =BLS!$D$74 -> 1.040694558 | K31: ='BB LCOE'!$A$6 -> 0.986280261 | L31: ='BB LCOE'!$A$4 -> 0.9037022775 | M31: ='BB LCOE'!$A$5 -> 0.9341098999 | N31: =B31*$J31*(1+$I$30)^B$5 -> 0 | O31: 0 | P31: =D31*K31*(1+$I$30)^D$5 -> 0 | Q31: =E31*(1+$I$30)^E$5 -> 199698236.5 | R31: =F31*L31*(1+$I$30)^F$5 -> 0 | S31: 0 | T31: =H31*(1+$I$30)^H$5 -> 0
A32: Owner's Contingency | B32: 13967000 | C32: 6957000 | D32: =5%*D27 -> 16000 | F32: =$F$27*10% -> 74301.35898 | G32: =$G$27*5% -> 48241.67802 | H32: 65065.11966 | J32: =BLS!$D$74 -> 1.040694558 | K32: ='BB LCOE'!$A$6 -> 0.986280261 | L32: ='BB LCOE'!$A$4 -> 0.9037022775 | M32: ='BB LCOE'!$A$5 -> 0.9341098999 | N32: 15573937.4 | O32: 7843060.569 | P32: =D32*K32*(1+$I$30)^D$5 -> 17094.66546 | Q32: =E32*(1+$I$30)^E$5 -> 0 | R32: 71718.59582 | S32: 49123.05755 | T32: =H32*(1+$I$30)^H$5 -> 69495.69089
A33: Electrical Interconnection | B33: 25000000 | C33: 25000000 | D33: 7000000 | E33: 55000000 | F33: 5700000 | G33: 5400000 | H33: 817000 | J33: =BLS!$D$74 -> 1.040694558 | K33: ='BB LCOE'!$A$6 -> 0.986280261 | L33: ='BB LCOE'!$A$4 -> 0.9037022775 | M33: ='BB LCOE'!$A$5 -> 0.9341098999 | N33: 27876310.95 | O33: 28184061.27 | P33: =D33*K33*(1+$I$30)^D$5 -> 7478916.138 | Q33: =E33*(1+$I$30)^E$5 -> 57109855 | R33: 5501864.324 | S33: 5498658.456 | T33: =H33*(1+$I$30)^H$5 -> 872633.1368
A34: Electrical System Upgrade Costs/Substation Upgrades | B34: 0 | C34: 0 | D34: 38000000 | J34: =BLS!$D$74 -> 1.040694558 | K34: ='BB LCOE'!$A$6 -> 0.986280261 | L34: ='BB LCOE'!$A$4 -> 0.9037022775 | M34: ='BB LCOE'!$A$5 -> 0.9341098999 | N34: 0 | O34: 0 | P34: =D34*K34*(1+$I$30)^D$5 -> 40599830.46 | Q34: =E34*(1+$I$30)^E$5 -> 0 | R34: 0 | S34: 0 | T34: =H34*(1+$I$30)^H$5 -> 0
A35: Gas Interconnection | B35: 10000000 | C35: 10000000 | J35: =BLS!$D$74 -> 1.040694558 | K35: ='BB LCOE'!$A$6 -> 0.986280261 | L35: ='BB LCOE'!$A$4 -> 0.9037022775 | M35: ='BB LCOE'!$A$5 -> 0.9341098999 | N35: 11150524.38 | O35: 11273624.51 | P35: =D35*K35*(1+$I$30)^D$5 -> 0 | Q35: =E35*(1+$I$30)^E$5 -> 0 | R35: 0 | S35: 0 | T35: =H35*(1+$I$30)^H$5 -> 0
A36: Fuel Inventories | B36: =1500000*3 -> 4500000 | C36: =1500000*3 -> 4500000 | I36: =Assumptions!$D$54 -> 0.054 | J36: =BLS!$D$74 -> 1.040694558 | K36: ='BB LCOE'!$A$6 -> 0.986280261 | L36: ='BB LCOE'!$A$4 -> 0.9037022775 | M36: ='BB LCOE'!$A$5 -> 0.9341098999 | N36: =B36*J36*(1+$I36)^B$5 -> 5679167.84 | O36: =C36*J36*(1+$I36)^C$5 -> 5856098.777 | P36: =D36*(1+$I36)^D$5 -> 0 | Q36: =E36*(1+$I36)^E$5 -> 0 | R36: =F36*(1+$I36)^F$5 -> 0 | S36: =G36*(1+$I36)^G$5 -> 0 | T36: =H36*(1+$I36)^H$5 -> 0
A37: Financing Fees (4% of costs financed through debt) | B37: =4%*B28 -> 18242357.46 | C37: 9086839.977 | D37: 4875084.584 | E37: 153856500 | F37: 941455.5669 | G37: 5153113.083 | H37: 515467.685 | J37: =BLS!$D$74 -> 1.040694558 | K37: ='BB LCOE'!$A$6 -> 0.986280261 | L37: ='BB LCOE'!$A$4 -> 0.9037022775 | M37: ='BB LCOE'!$A$5 -> 0.9341098999 | N37: =B37*J37*(1+$I$30)^B$5 -> 20341185.16 | O37: =C37*$J37*(1+$I$30)^C$5 -> 10244162.18 | P37: =D37*K37*(1+$I$30)^D$5 -> 5208621.253 | Q37: =E37*(1+$I$30)^E$5 -> 159758589.2 | R37: =F37*L37*(1+$I$30)^F$5 -> 908729.9642 | S37: =G37*M37*(1+$I$30)^G$5 -> 5247260.894 | T37: =H37*(1+$I$30)^H$5 -> 550568.1552
A38: Working Capital (1% of EPC costs) | B38: =1%*B28 -> 4560589.366 | C38: 2271709.994 | D38: 1218771.146 | E38: 38464125 | F38: 235363.8917 | G38: 1288278.271 | H38: 128866.9212 | J38: =BLS!$D$74 -> 1.040694558 | K38: ='BB LCOE'!$A$6 -> 0.986280261 | L38: ='BB LCOE'!$A$4 -> 0.9037022775 | M38: ='BB LCOE'!$A$5 -> 0.9341098999 | N38: =B38*J38*(1+$I$30)^B$5 -> 5085296.291 | O38: =C38*$J38*(1+$I$30)^C$5 -> 2561040.546 | P38: =D38*K38*(1+$I$30)^D$5 -> 1302155.313 | Q38: =E38*(1+$I$30)^E$5 -> 39939647.3 | R38: =F38*L38*(1+$I$30)^F$5 -> 227182.4911 | S38: =G38*M38*(1+$I$30)^G$5 -> 1311815.223 | T38: =H38*(1+$I$30)^H$5 -> 137642.0388
A39: Total Non-EPC | B39: =SUM(B31:B38) -> 76269946.83 | C39: 57815549.97 | D39: 51109855.73 | E39: 439641250 | F39: 6951120.818 | G39: 11889633.03 | H39: 1526399.726 | N39: =SUM(N31:N38) -> 85706422.02 | O39: 65962047.85 | P39: 54606617.83 | Q39: 456506328 | R39: 6709495.375 | S39: 12106857.63 | T39: 1630339.022
A42: Total Overnight Capital Costs | B42: =B28+B39 -> 532328883.4 | C42: 284986549.4 | D42: 172986970.3 | E42: 4286053750 | F42: 30487509.99 | G42: 140717460.1 | H42: 14413091.85 | N42: =N28+N39 -> 572620478.9 | O42: 309491460.9 | P42: 178428600.9 | Q42: 4356957077 | R42: 28505071.85 | S42: 136355808.4 | T42: 14835527.37
A44: $/KW | B44: =B42/(B45*1000) -> 955.7071516 | C44: 757.9429505 | D44: 2096.811762 | E44: 5357.567187 | F44: 1524.3755 | G44: 938.1164006 | H44: 1441.309185 | N44: =N42/(N45*1000) -> 1028.043948 | O44: 823.1155875 | P44: 2162.77092 | Q44: 5446.196347 | R44: 1425.253592 | S44: 909.0387224 | T44: 1483.552737
A45: Installed Capacity (MW) | B45: =INDEX(Assumptions!$C$5:$L$15,MATCH(Assumptions!$C$15,Assumptions!$C$5:$C$15,0),MATCH('Capital Costs'!B$2,Assumptions!$C$5:$L$5,0)) -> 557 | C45: =INDEX(Assumptions!$C$5:$L$15,MATCH(Assumptions!$C$15,Assumptions!$C$5:$C$15,0),MATCH('Capital Costs'!C$2,Assumptions!$C$5:$L$5,0)) -> 376 | D45: =INDEX(Assumptions!$C$5:$L$15,MATCH(Assumptions!$C$15,Assumptions!$C$5:$C$15,0),MATCH('Capital Costs'!D$2,Assumptions!$C$5:$L$5,0)) -> 82.5 | E45: =INDEX(Assumptions!$C$5:$L$15,MATCH(Assumptions!$C$15,Assumptions!$C$5:$C$15,0),MATCH('Capital Costs'!E$2,Assumptions!$C$5:$L$5,0)) -> 800 | F45: =INDEX(Assumptions!$C$5:$L$15,MATCH(Assumptions!$C$15,Assumptions!$C$5:$C$15,0),MATCH('Capital Costs'!F$2,Assumptions!$C$5:$L$5,0)) -> 20 | G45: =INDEX(Assumptions!$C$5:$L$15,MATCH(Assumptions!$C$15,Assumptions!$C$5:$C$15,0),MATCH('Capital Costs'!G$2,Assumptions!$C$5:$L$5,0)) -> 150 | H45: =INDEX(Assumptions!$C$5:$L$15,MATCH(Assumptions!$C$15,Assumptions!$C$5:$C$15,0),MATCH('Capital Costs'!H$2,Assumptions!$C$5:$L$5,0)) -> 10 | N45: =B45 -> 557 | O45: 376 | P45: 82.5 | Q45: 800 | R45: 20 | S45: 150 | T45: 10
A46: Non-Depreciable Assets | B46: =SUM(B36,B38) -> 9060589.366 | C46: 6771709.994 | D46: 1218771.146 | E46: 38464125 | F46: 235363.8917 | G46: 1288278.271 | H46: 128866.9212 | N46: =SUM(N36,N38) -> 10764464.13 | O46: 8417139.323 | P46: 1302155.313 | Q46: 39939647.3 | R46: 227182.4911 | S46: 1311815.223 | T46: 137642.0388
A47: Non-Depreciable $/kW | B47: =B46/(B45*1000) -> 16.26676726 | C47: 18.00986701 | D47: 14.77298359 | E47: 48.08015625 | F47: 11.76819459 | G47: 8.588521804 | H47: 12.88669212 | N47: =N46/(N45*1000) -> 19.32578839 | O47: 22.38600884 | P47: 15.78370077 | Q47: 49.92455912 | R47: 11.35912455 | S47: 8.745434823 | T47: 13.76420388

Sheet E&AS
B1: Energy & Ancillary Services Revenue
B3: Technology | D3: ='Controls & Results'!D8 -> Battery - ORTP
B5: Year
B6: E&AS Revenue | C6: Availability | D6: =OFFSET(D9,MATCH($D$3,$B$9:$B$15,0)-1,0) -> 11302501.73
H7: Annual Update EAS Multiplier
G8: With FRM | I8: With FRM
B9: =Assumptions!$F$5 -> CC - ORTP | C9: =PFP!F37 -> 0.9277 | D9: =C9*IF('Controls & Results'!$D$9="FRM Sunset",#REF!,G9) -> 22465869.6 | G9: =$H9*I9 -> 24216739.9 | H9: =ICE!$G$99 -> 1.157595973 | I9: 20919855
B10: =Assumptions!$G$5 -> SC - ORTP | C10: =PFP!F38 -> 0.98 | D10: =C10*IF('Controls & Results'!$D$9="FRM Sunset",#REF!,G10) -> 14051573.45 | G10: =$H10*I10 -> 14338340.26 | H10: =ICE!$G$99 -> 1.157595973 | I10: 12386308
B11: =Assumptions!$H$5 -> Onshore Wind - ORTP | C11: 1 | D11: =C11*IF('Controls & Results'!$D$9="FRM Sunset",#REF!,G11) -> 17259110.12 | G11: =$H11*I11 -> 17259110.12 | H11: =ICE!$G$100 -> 1.277298383 | I11: 13512199.15
B12: =Assumptions!$I$5 -> Offshore Wind - ORTP | C12: 1 | D12: =C12*IF('Controls & Results'!$D$9="FRM Sunset",#REF!,G12) -> 143752522.8 | G12: 143752522.8 | I12: 143752522.8
B13: =Assumptions!$J$5 -> Solar - ORTP | C13: 1 | D13: =C13*IF('Controls & Results'!$D$9="FRM Sunset",#REF!,G13) -> 1522538.633 | G13: =$H13*I13 -> 1522538.633 | H13: =ICE!$G$100 -> 1.277298383 | I13: 1191999.186
B14: =Assumptions!$K$5 -> Battery - ORTP | C14: 1 | D14: =C14*IF('Controls & Results'!$D$9="FRM Sunset",#REF!,G14) -> 11302501.73 | G14: =$H14*I14 -> 11302501.73 | H14: =ICE!$G$100 -> 1.277298383 | I14: 8848756
B15: =Assumptions!$L$5 -> Co-located Resource - ORTP | C15: 1 | D15: =C15*IF('Controls & Results'!$D$9="FRM Sunset",#REF!,G15) -> 320098.2788 | G15: 320098.2788 | I15: 320098.2788

Sheet PFP
B1: Pay for Performance
B3: Technology | C3: ='Controls & Results'!D8 -> Battery - ORTP
C4: ='Controls & Results'!D9 -> With FRM
C5: ='Controls & Results'!#REF! -> 
B7: Year | D7: 2026 | E7: =D7+1 -> 2027 | F7: =E7+1 -> 2028 | G7: 2029 | H7: 2030 | I7: 2031 | J7: 2032 | K7: 2033 | L7: 2034 | M7: 2035 | N7: 2036 | O7: 2037 | P7: 2038 | Q7: 2039 | R7: 2040 | S7: 2041 | T7: 2042 | U7: 2043 | V7: 2044 | W7: 2045
B8: ICAP | C8: ICAP: 2025$ | D8: =D9/(1+Assumptions!$D$36)^(D7-$D$7) -> 1699707.48 | E8: =E9/(1+Assumptions!$D$36)^(E7-$D$7) -> 1666379.882 | F8: =F9/(1+Assumptions!$D$36)^(F7-$D$7) -> 1633705.767 | G8: =G9/(1+Assumptions!$D$36)^(G7-$D$7) -> 1699707.48 | H8: =H9/(1+Assumptions!$D$36)^(H7-$D$7) -> 1666379.882 | I8: =I9/(1+Assumptions!$D$36)^(I7-$D$7) -> 1633705.767 | J8: =J9/(1+Assumptions!$D$36)^(J7-$D$7) -> 1699707.48 | K8: =K9/(1+Assumptions!$D$36)^(K7-$D$7) -> 1666379.882 | L8: =L9/(1+Assumptions!$D$36)^(L7-$D$7) -> 1633705.767 | M8: =M9/(1+Assumptions!$D$36)^(M7-$D$7) -> 1699707.48 | N8: =N9/(1+Assumptions!$D$36)^(N7-$D$7) -> 1666379.882 | O8: =O9/(1+Assumptions!$D$36)^(O7-$D$7) -> 1633705.767 | P8: =P9/(1+Assumptions!$D$36)^(P7-$D$7) -> 1699707.48 | Q8: =Q9/(1+Assumptions!$D$36)^(Q7-$D$7) -> 1666379.882 | R8: =R9/(1+Assumptions!$D$36)^(R7-$D$7) -> 1633705.767 | S8: =S9/(1+Assumptions!$D$36)^(S7-$D$7) -> 1699707.48 | T8: =T9/(1+Assumptions!$D$36)^(T7-$D$7) -> 1666379.882 | U8: =U9/(1+Assumptions!$D$36)^(U7-$D$7) -> 1633705.767 | V8: =V9/(1+Assumptions!$D$36)^(V7-$D$7) -> 1699707.48 | W8: =W9/(1+Assumptions!$D$36)^(W7-$D$7) -> 1666379.882
C9: ICAP: Nominal | D9: =OFFSET(D13,MATCH($C$3,$B$13:$B$19,0)-1,0) -> 1699707.48 | E9: =OFFSET(E13,MATCH($C$3,$B$13:$B$19,0)-1,0) -> 1699707.48 | F9: 1699707.48 | G9: 1803743.175 | H9: 1803743.175 | I9: 1803743.175 | J9: 1914146.688 | K9: 1914146.688 | L9: 1914146.688 | M9: 2031307.778 | N9: 2031307.778 | O9: 2031307.778 | P9: 2155640.065 | Q9: 2155640.065 | R9: 2155640.065 | S9: 2287582.482 | T9: 2287582.482 | U9: 2287582.482 | V9: 2427600.83 | W9: 2427600.83
C12: Plant Capacity (MW)
B13: =Assumptions!$F$5 -> CC - ORTP | C13: =Assumptions!F15*Assumptions!F17 -> 501.3 | D13: =D24*12*1000*$C13 -> 3868921.841 | E13: 3868921.841 | F13: 3868921.841 | G13: 4105730.809 | H13: 4105730.809 | I13: 4105730.809 | J13: 4357034.38 | K13: 4357034.38 | L13: 4357034.38 | M13: 4623719.74 | N13: 4623719.74 | O13: 4623719.74 | P13: 4906728.378 | Q13: 4906728.378 | R13: 4906728.378 | S13: 5207059.409 | T13: 5207059.409 | U13: 5207059.409 | V13: 5525773.101 | W13: 5525773.101
B14: =Assumptions!$G$5 -> SC - ORTP | C14: =Assumptions!G15*Assumptions!G17 -> 360.96 | D14: =D25*12*1000*$C14 -> 4090176.08 | E14: 4090176.08 | F14: 4090176.08 | G14: 4340527.577 | H14: 4340527.577 | I14: 4340527.577 | J14: 4606202.589 | K14: 4606202.589 | L14: 4606202.589 | M14: 4888139.037 | N14: 4888139.037 | O14: 4888139.037 | P14: 5187332.252 | Q14: 5187332.252 | R14: 5187332.252 | S14: 5504838.484 | T14: 5504838.484 | U14: 5504838.484 | V14: 5841778.638 | W14: 5841778.638
B15: =Assumptions!$H$5 -> Onshore Wind - ORTP | C15: =Assumptions!H15 -> 82.5 | D15: =D26*12*1000*$C15 -> 277562.5424 | E15: 277562.5424 | F15: 277562.5424 | G15: 294551.5905 | H15: 294551.5905 | I15: 294551.5905 | J15: 312580.5043 | K15: 312580.5043 | L15: 312580.5043 | M15: 331712.9318 | N15: 331712.9318 | O15: 331712.9318 | P15: 352016.4169 | Q15: 352016.4169 | R15: 352016.4169 | S15: 373562.6378 | T15: 373562.6378 | U15: 373562.6378 | V15: 396427.6597 | W15: 396427.6597
B16: =Assumptions!$I$5 -> Offshore Wind - ORTP | C16: =Assumptions!I15 -> 800 | D16: =D27*12*1000*$C16 -> 3085689.958 | E16: 3085689.958 | F16: 3085689.958 | G16: 3274558.869 | H16: 3274558.869 | I16: 3274558.869 | J16: 3474988.068 | K16: 3474988.068 | L16: 3474988.068 | M16: 3687685.138 | N16: 3687685.138 | O16: 3687685.138 | P16: 3913400.97 | Q16: 3913400.97 | R16: 3913400.97 | S16: 4152932.416 | T16: 4152932.416 | U16: 4152932.416 | V16: 4407125.104 | W16: 4407125.104
B17: =Assumptions!$J$5 -> Solar - ORTP | C17: =Assumptions!J15 -> 20 | D17: =D28*12*1000*$C17 -> 121551.6884 | E17: 121551.6884 | F17: 121551.6884 | G17: 128991.6241 | H17: 128991.6241 | I17: 128991.6241 | J17: 136886.9434 | K17: 136886.9434 | L17: 136886.9434 | M17: 145265.5195 | N17: 145265.5195 | O17: 145265.5195 | P17: 154156.9314 | Q17: 154156.9314 | R17: 154156.9314 | S17: 163592.5688 | T17: 163592.5688 | U17: 163592.5688 | V17: 173605.7428 | W17: 173605.7428
B18: =Assumptions!$K$5 -> Battery - ORTP | C18: =Assumptions!K15 -> 150 | D18: =D29*12*1000*$C18 -> 1699707.48 | E18: 1699707.48 | F18: 1699707.48 | G18: 1803743.175 | H18: 1803743.175 | I18: 1803743.175 | J18: 1914146.688 | K18: 1914146.688 | L18: 1914146.688 | M18: 2031307.778 | N18: 2031307.778 | O18: 2031307.778 | P18: 2155640.065 | Q18: 2155640.065 | R18: 2155640.065 | S18: 2287582.482 | T18: 2287582.482 | U18: 2287582.482 | V18: 2427600.83 | W18: 2427600.83
B19: =Assumptions!$L$5 -> Co-located Resource - ORTP | C19: =Assumptions!L15 -> 10 | D19: =D30*12*1000*$C19 -> 92682.89217 | E19: 92682.89217 | F19: 92682.89217 | G19: 98355.82664 | H19: 98355.82664 | I19: 98355.82664 | J19: 104375.9901 | K19: 104375.9901 | L19: 104375.9901 | M19: 110764.6357 | N19: 110764.6357 | O19: 110764.6357 | P19: 117544.3175 | Q19: 117544.3175 | R19: 117544.3175 | S19: 124738.9701 | T19: 124738.9701 | U19: 124738.9701 | V19: 132373.993 | W19: 132373.993
B21: PPR Tariff Rate ($/MWh) | C21: Inflation Rate (%)
B22: =VLOOKUP(C3,B37:E43,4,FALSE) -> 9337 | C22: 0.02 | D22: =B22 -> 9337 | E22: =D22 -> 9337 | F22: =E22 -> 9337 | G22: =D22*((1+$C$22)^3) -> 9908.499096 | H22: =G22 -> 9908.499096 | I22: =G22 -> 9908.499096 | J22: =G22*((1+$C$22)^3) -> 10514.97851 | K22: =J22 -> 10514.97851 | L22: =J22 -> 10514.97851 | M22: =J22*((1+$C$22)^3) -> 11158.57931 | N22: =M22 -> 11158.57931 | O22: =M22 -> 11158.57931 | P22: =M22*((1+$C$22)^3) -> 11841.57364 | Q22: =P22 -> 11841.57364 | R22: =P22 -> 11841.57364 | S22: =P22*((1+$C$22)^3) -> 12566.37267 | T22: =S22 -> 12566.37267 | U22: =S22 -> 12566.37267 | V22: =S22*((1+$C$22)^3) -> 13335.53521 | W22: =V22 -> 13335.53521
B23: Technology Specific, CCP-specific Net Performance Payments
B24: =Assumptions!$F$5 -> CC - ORTP | D24: =($D37*D$22*($F37-$G37))/1000/12 -> 0.6431481217 | E24: 0.6431481217 | F24: 0.6431481217 | G24: 0.6825139319 | H24: 0.6825139319 | I24: 0.6825139319 | J24: 0.7242892446 | K24: 0.7242892446 | L24: 0.7242892446 | M24: 0.7686215407 | N24: 0.7686215407 | O24: 0.7686215407 | P24: 0.815667328 | Q24: 0.815667328 | R24: 0.815667328 | S24: 0.8655926938 | T24: 0.8655926938 | U24: 0.8655926938 | V24: 0.9185738914 | W24: 0.9185738914
B25: =Assumptions!$G$5 -> SC - ORTP | D25: =($D38*D$22*($F38-$G38))/1000/12 -> 0.9442819333 | E25: 0.9442819333 | F25: 0.9442819333 | G25: 1.002079542 | H25: 1.002079542 | I25: 1.002079542 | J25: 1.063414827 | K25: 1.063414827 | L25: 1.063414827 | M25: 1.128504321 | N25: 1.128504321 | O25: 1.128504321 | P25: 1.197577814 | Q25: 1.197577814 | R25: 1.197577814 | S25: 1.270879157 | T25: 1.270879157 | U25: 1.270879157 | V25: 1.348667128 | W25: 1.348667128
B26: =Assumptions!$H$5 -> Onshore Wind - ORTP | D26: =($D39*D$22*($F39-($F39*$G39))/1000/12) -> 0.2803662045 | E26: 0.2803662045 | F26: 0.2803662045 | G26: 0.2975268591 | H26: 0.2975268591 | I26: 0.2975268591 | J26: 0.3157378831 | K26: 0.3157378831 | L26: 0.3157378831 | M26: 0.3350635675 | N26: 0.3350635675 | O26: 0.3350635675 | P26: 0.3555721383 | Q26: 0.3555721383 | R26: 0.3555721383 | S26: 0.3773359978 | T26: 0.3773359978 | U26: 0.3773359978 | V26: 0.4004319795 | W26: 0.4004319795
B27: =Assumptions!$I$5 -> Offshore Wind - ORTP | D27: =($D40*D$22*($F40-($F40*$G40))/1000/12) -> 0.3214260373 | E27: 0.3214260373 | F27: 0.3214260373 | G27: 0.3410998822 | H27: 0.3410998822 | I27: 0.3410998822 | J27: 0.3619779238 | K27: 0.3619779238 | L27: 0.3619779238 | M27: 0.3841338685 | N27: 0.3841338685 | O27: 0.3841338685 | P27: 0.4076459344 | Q27: 0.4076459344 | R27: 0.4076459344 | S27: 0.4325971267 | T27: 0.4325971267 | U27: 0.4325971267 | V27: 0.4590755316 | W27: 0.4590755316
B28: =Assumptions!$J$5 -> Solar - ORTP | D28: =($D41*D$22*($F41-($F41*$G41))/1000/12) -> 0.5064653682 | E28: 0.5064653682 | F28: 0.5064653682 | G28: 0.5374651005 | H28: 0.5374651005 | I28: 0.5374651005 | J28: 0.5703622643 | K28: 0.5703622643 | L28: 0.5703622643 | M28: 0.6052729978 | N28: 0.6052729978 | O28: 0.6052729978 | P28: 0.6423205474 | Q28: 0.6423205474 | R28: 0.6423205474 | S28: 0.6816357035 | T28: 0.6816357035 | U28: 0.6816357035 | V28: 0.7233572617 | W28: 0.7233572617
B29: =Assumptions!$K$5 -> Battery - ORTP | D29: =($D42*D$22*($F42-$G42))/1000/12 -> 0.9442819333 | E29: 0.9442819333 | F29: 0.9442819333 | G29: 1.002079542 | H29: 1.002079542 | I29: 1.002079542 | J29: 1.063414827 | K29: 1.063414827 | L29: 1.063414827 | M29: 1.128504321 | N29: 1.128504321 | O29: 1.128504321 | P29: 1.197577814 | Q29: 1.197577814 | R29: 1.197577814 | S29: 1.270879157 | T29: 1.270879157 | U29: 1.270879157 | V29: 1.348667128 | W29: 1.348667128
B30: =Assumptions!$L$5 -> Co-located Resource - ORTP | D30: =($D43*D$22*($F43-($F43*$G43))/1000/12) -> 0.7723574348 | E30: 0.7723574348 | F30: 0.7723574348 | G30: 0.8196318886 | H30: 0.8196318886 | I30: 0.8196318886 | J30: 0.8697999173 | K30: 0.8697999173 | L30: 0.8697999173 | M30: 0.9230386306 | N30: 0.9230386306 | O30: 0.9230386306 | P30: 0.9795359791 | Q30: 0.9795359791 | R30: 0.9795359791 | S30: 1.039491417 | T30: 1.039491417 | U30: 1.039491417 | V30: 1.103116608 | W30: 1.103116608
B33: Pay for Performance | D33: [H] | E33: [PPR] | F33: [A] | G33: [Br]
B34: Technology | D34: Scarcity Hours at Criteria | E34: Performance Payment Rate | F34: Average Actual Performance | G34: Average Balancing Ratio | H34: Net Performance Payments
D35: hrs | E35: $/MWh | F35: % | G35: % | H35: $/kW-mo
D36: [1] | E36: [2] | F36: [3] | G36: [4] | H36: [5]
B37: CC - ORTP | D37: 7.4 | E37: 9337 | F37: 0.9277 | G37: 0.816 | H37: =(D37*E37*(F37-G37))/1000/12 -> 0.6431481217
B38: SC - ORTP | D38: 7.4 | E38: 9337 | F38: 0.98 | G38: =G37 -> 0.816 | H38: =(D38*E38*(F38-G38))/1000/12 -> 0.9442819333
B39: Onshore Wind - ORTP | D39: 7.4 | E39: 9337 | F39: 0.2646366601 | G39: =G38 -> 0.816 | H39: =(D39*E39*(F39-(F39*G39)))/1000/12 -> 0.2803662045
B40: Offshore Wind - ORTP | D40: 7.4 | E40: 9337 | F40: 0.3033928898 | G40: 0.816 | H40: =(D40*E40*(F40-(F40*G40)))/1000/12 -> 0.3214260373
B41: Solar - ORTP | D41: 7.4 | E41: 9337 | F41: 0.4780508541 | G41: 0.816 | H41: 0.5064653682
B42: Battery - ORTP | D42: 7.4 | E42: 9337 | F42: 0.98 | G42: 0.816 | H42: =(D42*E42*(F42-G42))/1000/12 -> 0.9442819333
B43: Co-located Resource - ORTP | D43: 7.4 | E43: 9337 | F43: =((F41*5)+(F42*5))/10 -> 0.729025427 | G43: 0.816 | H43: 0.7723574348
B47: NOTES (IN PROCESS)
B48: [1] - ISO-NE values
B49: [2] - ISO-NE values
B50: [3] - Mott MacDonald values
B51: [4] - ISO-NE values
B52: [5] - ([1] x [2] x ([3] - [4]) / 1000 / 12 non-intermittent
B53: [5] - ([1] x [2] x ([3] - ([3] * [4])) / 1000 / 12 intermittent

Sheet Scarcity
B1: Scarcity Adder
B3: Technology | C3: ='Controls & Results'!D8 -> Battery - ORTP
B5: Year | D5: 2026 | E5: =D5+1 -> 2027 | F5: =E5+1 -> 2028 | G5: 2029 | H5: 2030 | I5: 2031 | J5: 2032 | K5: 2033 | L5: 2034 | M5: 2035 | N5: 2036 | O5: 2037 | P5: 2038 | Q5: 2039 | R5: 2040 | S5: 2041 | T5: 2042 | U5: 2043 | V5: 2044 | W5: 2045
B6: ICAP | C6: ICAP: 2025$ | D6: =D7/(1+Assumptions!$D$36)^(D5-$D$5) -> 1087800 | E6: =E7/(1+Assumptions!$D$36)^(E5-$D$5) -> 1066470.588 | F6: =F7/(1+Assumptions!$D$36)^(F5-$D$5) -> 1045559.4 | G6: =G7/(1+Assumptions!$D$36)^(G5-$D$5) -> 1025058.236 | H6: =H7/(1+Assumptions!$D$36)^(H5-$D$5) -> 1004959.054 | I6: =I7/(1+Assumptions!$D$36)^(I5-$D$5) -> 985253.9749 | J6: =J7/(1+Assumptions!$D$36)^(J5-$D$5) -> 965935.2695 | K6: =K7/(1+Assumptions!$D$36)^(K5-$D$5) -> 946995.3623 | L6: =L7/(1+Assumptions!$D$36)^(L5-$D$5) -> 928426.8258 | M6: =M7/(1+Assumptions!$D$36)^(M5-$D$5) -> 910222.3782 | N6: =N7/(1+Assumptions!$D$36)^(N5-$D$5) -> 892374.8806 | O6: =O7/(1+Assumptions!$D$36)^(O5-$D$5) -> 874877.3339 | P6: =P7/(1+Assumptions!$D$36)^(P5-$D$5) -> 857722.8764 | Q6: =Q7/(1+Assumptions!$D$36)^(Q5-$D$5) -> 840904.7808 | R6: =R7/(1+Assumptions!$D$36)^(R5-$D$5) -> 824416.4517 | S6: =S7/(1+Assumptions!$D$36)^(S5-$D$5) -> 808251.4233 | T6: =T7/(1+Assumptions!$D$36)^(T5-$D$5) -> 792403.3562 | U6: =U7/(1+Assumptions!$D$36)^(U5-$D$5) -> 776866.0354 | V6: =V7/(1+Assumptions!$D$36)^(V5-$D$5) -> 761633.3681 | W6: =W7/(1+Assumptions!$D$36)^(W5-$D$5) -> 746699.3805
C7: ICAP: Nominal | D7: =OFFSET(D11,MATCH($C$3,$B$11:$B$17,0)-1,0) -> 1087800 | E7: =OFFSET(E11,MATCH($C$3,$B$11:$B$17,0)-1,0) -> 1087800 | F7: 1087800 | G7: 1087800 | H7: 1087800 | I7: 1087800 | J7: 1087800 | K7: 1087800 | L7: 1087800 | M7: 1087800 | N7: 1087800 | O7: 1087800 | P7: 1087800 | Q7: 1087800 | R7: 1087800 | S7: 1087800 | T7: 1087800 | U7: 1087800 | V7: 1087800 | W7: 1087800
C10: Plant Capacity (MW)
B11: =Assumptions!$F$5 -> CC - ORTP | C11: =Assumptions!F15*Assumptions!F17 -> 501.3 | D11: =$G$24*12*1000*$C11 -> 3441414.474 | E11: 3441414.474 | F11: 3441414.474 | G11: 3441414.474 | H11: 3441414.474 | I11: 3441414.474 | J11: 3441414.474 | K11: 3441414.474 | L11: 3441414.474 | M11: 3441414.474 | N11: 3441414.474 | O11: 3441414.474 | P11: 3441414.474 | Q11: 3441414.474 | R11: 3441414.474 | S11: 3441414.474 | T11: 3441414.474 | U11: 3441414.474 | V11: 3441414.474 | W11: 3441414.474
B12: =Assumptions!$G$5 -> SC - ORTP | C12: =Assumptions!G15*Assumptions!G17 -> 360.96 | D12: =$G$25*12*1000*$C12 -> 2617681.92 | E12: 2617681.92 | F12: 2617681.92 | G12: 2617681.92 | H12: 2617681.92 | I12: 2617681.92 | J12: 2617681.92 | K12: 2617681.92 | L12: 2617681.92 | M12: 2617681.92 | N12: 2617681.92 | O12: 2617681.92 | P12: 2617681.92 | Q12: 2617681.92 | R12: 2617681.92 | S12: 2617681.92 | T12: 2617681.92 | U12: 2617681.92 | V12: 2617681.92 | W12: 2617681.92
B13: =Assumptions!$H$5 -> Onshore Wind - ORTP | C13: =Assumptions!H15 -> 82.5 | D13: =$G$26*12*1000*$C13 -> 161560.681 | E13: 161560.681 | F13: 161560.681 | G13: 161560.681 | H13: 161560.681 | I13: 161560.681 | J13: 161560.681 | K13: 161560.681 | L13: 161560.681 | M13: 161560.681 | N13: 161560.681 | O13: 161560.681 | P13: 161560.681 | Q13: 161560.681 | R13: 161560.681 | S13: 161560.681 | T13: 161560.681 | U13: 161560.681 | V13: 161560.681 | W13: 161560.681
B14: =Assumptions!$I$5 -> Offshore Wind - ORTP | C14: =Assumptions!I15 -> 800 | D14: =$G$27*12*1000*$C14 -> 1796085.908 | E14: 1796085.908 | F14: 1796085.908 | G14: 1796085.908 | H14: 1796085.908 | I14: 1796085.908 | J14: 1796085.908 | K14: 1796085.908 | L14: 1796085.908 | M14: 1796085.908 | N14: 1796085.908 | O14: 1796085.908 | P14: 1796085.908 | Q14: 1796085.908 | R14: 1796085.908 | S14: 1796085.908 | T14: 1796085.908 | U14: 1796085.908 | V14: 1796085.908 | W14: 1796085.908
B15: =Assumptions!$J$5 -> Solar - ORTP | C15: =Assumptions!J15 -> 20 | D15: =$G$28*12*1000*$C15 -> 70751.5264 | E15: 70751.5264 | F15: 70751.5264 | G15: 70751.5264 | H15: 70751.5264 | I15: 70751.5264 | J15: 70751.5264 | K15: 70751.5264 | L15: 70751.5264 | M15: 70751.5264 | N15: 70751.5264 | O15: 70751.5264 | P15: 70751.5264 | Q15: 70751.5264 | R15: 70751.5264 | S15: 70751.5264 | T15: 70751.5264 | U15: 70751.5264 | V15: 70751.5264 | W15: 70751.5264
B16: =Assumptions!$K$5 -> Battery - ORTP | C16: =Assumptions!K15 -> 150 | D16: =$G$29*12*1000*$C16 -> 1087800 | E16: 1087800 | F16: 1087800 | G16: 1087800 | H16: 1087800 | I16: 1087800 | J16: 1087800 | K16: 1087800 | L16: 1087800 | M16: 1087800 | N16: 1087800 | O16: 1087800 | P16: 1087800 | Q16: 1087800 | R16: 1087800 | S16: 1087800 | T16: 1087800 | U16: 1087800 | V16: 1087800 | W16: 1087800
B17: =Assumptions!$L$5 -> Co-located Resource - ORTP | C17: =Assumptions!L15 -> 10 | D17: =$G$30*12*1000*$C17 -> 53947.8816 | E17: 53947.8816 | F17: 53947.8816 | G17: 53947.8816 | H17: 53947.8816 | I17: 53947.8816 | J17: 53947.8816 | K17: 53947.8816 | L17: 53947.8816 | M17: 53947.8816 | N17: 53947.8816 | O17: 53947.8816 | P17: 53947.8816 | Q17: 53947.8816 | R17: 53947.8816 | S17: 53947.8816 | T17: 53947.8816 | U17: 53947.8816 | V17: 53947.8816 | W17: 53947.8816
B20: Scarcity | D20: [H] | F20: [A]
B21: Technology | D21: Scarcity Hours at Criteria | E21: Reserve Constraint Penalty Factor | F21: Average Actual Performance | G21: Energy Market Scarcity Revenue
D22: hrs | E22: $/MWh | F22: % | G22: $/kW-mo
D23: [1] | E23: [2] | F23: [3] | G23: [4]
B24: Combined Cycle - ORTP | D24: =PFP!D37 -> 7.4 | E24: 1000 | F24: =PFP!F37 -> 0.9277 | G24: =(D24*E24*F24)/1000/12 -> 0.5720816667
B25: Simple Cycle - ORTP | D25: =PFP!D38 -> 7.4 | E25: 1000 | F25: =PFP!F38 -> 0.98 | G25: 0.6043333333
B26: Onshore Wind - ORTP | D26: =PFP!D39 -> 7.4 | E26: 1000 | F26: =PFP!F39 -> 0.2646366601 | G26: 0.1631926071
B27: Offshore Wind | D27: =PFP!D40 -> 7.4 | E27: 1000 | F27: =PFP!F40 -> 0.3033928898 | G27: 0.187092282
B28: Solar | D28: =PFP!D41 -> 7.4 | E28: 1000 | F28: =PFP!F41 -> 0.4780508541 | G28: 0.2947980267
B29: Battery | D29: =PFP!D42 -> 7.4 | E29: 1000 | F29: =PFP!F42 -> 0.98 | G29: 0.6043333333
B30: Co-located Resource | D30: =PFP!D43 -> 7.4 | E30: 1000 | F30: =PFP!F43 -> 0.729025427 | G30: 0.44956568
B33: NOTES [IN PROCESS]:
B34: [1] - ISO-NE values
B35: [2] - ISO-NE values
B36: [3] - Mott MacDonald values
B37: [4] - [1] x [2] x [3] / 1000 / 12

Sheet MACRS
B1: MACRS
B3: Technology | C3: ='Controls & Results'!D8 -> Battery - ORTP
B5: Depreciation Schedule | C5: =Assumptions!D26 -> 7yrMACRS
C8: Year | D8: 2026 | E8: =D8+1 -> 2027 | F8: =E8+1 -> 2028 | G8: 2029 | H8: 2030 | I8: 2031 | J8: 2032 | K8: 2033 | L8: 2034 | M8: 2035 | N8: 2036 | O8: 2037 | P8: 2038 | Q8: 2039 | R8: 2040 | S8: 2041 | T8: 2042 | U8: 2043 | V8: 2044 | W8: 2045 | X8: 2046 | Y8: 2047 | Z8: 2048 | AA8: 2049 | AB8: 2050 | AC8: 2051 | AD8: 2052 | AE8: 2053 | AF8: 2054 | AG8: 2055
C9: Depreciation Schedule | D9: =OFFSET(D11,MATCH($C$5,$C$12:$C$17,0),0) -> 0.1429 | E9: 0.2449 | F9: 0.1749 | G9: 0.1249 | H9: 0.0893 | I9: 0.0892 | J9: 0.0893 | K9: 0.0446 | L9: 0 | M9: 0 | N9: 0 | O9: 0 | P9: 0 | Q9: 0 | R9: 0 | S9: 0 | T9: 0 | U9: 0 | V9: 0 | W9: 0 | X9: 0 | Y9: 0 | Z9: 0 | AA9: 0 | AB9: 0 | AC9: 0 | AD9: 0 | AE9: 0 | AF9: 0 | AG9: 0
D11: 1 | E11: 2 | F11: 3 | G11: 4 | H11: 5 | I11: 6 | J11: 7 | K11: 8 | L11: 9 | M11: 10 | N11: 11 | O11: 12 | P11: 13 | Q11: 14 | R11: 15 | S11: 16 | T11: 17 | U11: 18 | V11: 19 | W11: 20 | X11: 21 | Y11: 22 | Z11: 23 | AA11: 24 | AB11: 25 | AC11: 26 | AD11: 27 | AE11: 28 | AF11: 29 | AG11: 30
C12: 3yrMACRS | D12: 0.3333 | E12: 0.4445 | F12: 0.1481 | G12: 0.0741 | H12: 0 | I12: 0 | J12: 0 | K12: 0 | L12: 0 | M12: 0 | N12: 0 | O12: 0 | P12: 0 | Q12: 0 | R12: 0 | S12: 0 | T12: 0 | U12: 0 | V12: 0 | W12: 0 | X12: 0 | Y12: 0 | Z12: 0 | AA12: 0 | AB12: 0 | AC12: 0 | AD12: 0 | AE12: 0 | AF12: 0 | AG12: 0 | AH12: =SUM(D12:AG12) -> 1
B13: Wind, Solar, Co-located | C13: 5yrMACRS | D13: 0.2 | E13: 0.32 | F13: 0.192 | G13: 0.1152 | H13: 0.1152 | I13: 0.0576 | J13: 0 | K13: 0 | L13: 0 | M13: 0 | N13: 0 | O13: 0 | P13: 0 | Q13: 0 | R13: 0 | S13: 0 | T13: 0 | U13: 0 | V13: 0 | W13: 0 | X13: 0 | Y13: 0 | Z13: 0 | AA13: 0 | AB13: 0 | AC13: 0 | AD13: 0 | AE13: 0 | AF13: 0 | AG13: 0 | AH13: 1
B14: Battery | C14: 7yrMACRS | D14: 0.1429 | E14: 0.2449 | F14: 0.1749 | G14: 0.1249 | H14: 0.0893 | I14: 0.0892 | J14: 0.0893 | K14: 0.0446 | L14: 0 | M14: 0 | N14: 0 | O14: 0 | P14: 0 | Q14: 0 | R14: 0 | S14: 0 | T14: 0 | U14: 0 | V14: 0 | W14: 0 | X14: 0 | Y14: 0 | Z14: 0 | AA14: 0 | AB14: 0 | AC14: 0 | AD14: 0 | AE14: 0 | AF14: 0 | AG14: 0 | AH14: 1
C15: 10yrMACRS | D15: 0.1 | E15: 0.18 | F15: 0.144 | G15: 0.1152 | H15: 0.0922 | I15: 0.0737 | J15: 0.0655 | K15: 0.0655 | L15: 0.0656 | M15: 0.0655 | N15: 0.0328 | O15: 0 | P15: 0 | Q15: 0 | R15: 0 | S15: 0 | T15: 0 | U15: 0 | V15: 0 | W15: 0 | X15: 0 | Y15: 0 | Z15: 0 | AA15: 0 | AB15: 0 | AC15: 0 | AD15: 0 | AE15: 0 | AF15: 0 | AG15: 0 | AH15: 1
B16: Simple Cycle, Aero | C16: 15yrMACRS | D16: 0.05 | E16: 0.095 | F16: 0.0855 | G16: 0.077 | H16: 0.0693 | I16: 0.0623 | J16: 0.059 | K16: 0.059 | L16: 0.0591 | M16: 0.059 | N16: =L16 -> 0.0591 | O16: =M16 -> 0.059 | P16: =N16 -> 0.0591 | Q16: =O16 -> 0.059 | R16: =P16 -> 0.0591 | S16: 0.0295 | T16: 0 | U16: 0 | V16: 0 | W16: 0 | X16: 0 | Y16: 0 | Z16: 0 | AA16: 0 | AB16: 0 | AC16: 0 | AD16: 0 | AE16: 0 | AF16: 0 | AG16: 0 | AH16: =SUM(D16:AG16) -> 1
B17: Combined Cycle | C17: 20yrMACRS | D17: 0.0375 | E17: 0.07219 | F17: 0.06677 | G17: 0.06177 | H17: 0.05713 | I17: 0.05285 | J17: 0.04888 | K17: 0.04522 | L17: 0.04462 | M17: 0.04461 | N17: 0.04462 | O17: 0.04461 | P17: 0.04462 | Q17: 0.04461 | R17: 0.04462 | S17: 0.04461 | T17: 0.04462 | U17: 0.04461 | V17: 0.04462 | W17: 0.04461 | X17: 0.02231 | Y17: 0 | Z17: 0 | AA17: 0 | AB17: 0 | AC17: 0 | AD17: 0 | AE17: 0 | AF17: 0 | AG17: 0 | AH17: =SUM(D17:AG17) -> 1

Sheet Depreciation
B1: Depreciation
C2: 2026 | D2: =C2+1 -> 2027 | E2: =D2+1 -> 2028 | F2: 2029 | G2: 2030 | H2: 2031 | I2: 2032 | J2: 2033 | K2: 2034 | L2: 2035 | M2: 2036 | N2: 2037 | O2: 2038 | P2: 2039 | Q2: 2040 | R2: 2041 | S2: 2042 | T2: =S2+1 -> 2043 | U2: 2044 | V2: 2045
B3: Depreciation Rate | C3: =MACRS!D9 -> 0.1429 | D3: =MACRS!E9 -> 0.2449 | E3: =MACRS!F9 -> 0.1749 | F3: =MACRS!G9 -> 0.1249 | G3: =MACRS!H9 -> 0.0893 | H3: =MACRS!I9 -> 0.0892 | I3: =MACRS!J9 -> 0.0893 | J3: =MACRS!K9 -> 0.0446 | K3: =MACRS!L9 -> 0 | L3: =MACRS!M9 -> 0 | M3: =MACRS!N9 -> 0 | N3: =MACRS!O9 -> 0 | O3: =MACRS!P9 -> 0 | P3: =MACRS!Q9 -> 0 | Q3: =MACRS!R9 -> 0 | R3: =MACRS!S9 -> 0 | S3: =MACRS!T9 -> 0 | T3: =MACRS!U9 -> 0 | U3: =MACRS!V9 -> 0 | V3: =MACRS!W9 -> 0
B5: CAPEX SCHEDULE | C5: 0 | D5: 0 | E5: 0 | F5: 0 | G5: 0 | H5: 0 | I5: 0 | J5: 0 | K5: 0 | L5: 0 | M5: 0 | N5: 0 | O5: 0 | P5: 0 | Q5: 0 | R5: 0 | S5: 0 | T5: 0 | U5: 0 | V5: 0
B7: Beginning Plant | C7: ='Construction CF'!B45 -> 135693025.5
B8: ITC Reduced Plant Basis | C8: =C7*(1-Assumptions!$D$21/2) -> 135693025.5
B9: Bonus Depreciation | C9: =Assumptions!$D$27*Depreciation!C8 -> 27138605.09
B10: Beginning Plant MACRS | C10: =C8-C9 -> 108554420.4
A12: 1 | B12: Year 1 Additions | C12: =C5 -> 0
B13: Tax Depreciation | C13: =($C10+C12)*C$3 -> 15512426.67 | D13: =($C10+D12)*D$3 -> 26584977.55 | E13: 18986168.12 | F13: 13558447.11 | G13: 9693909.74 | H13: 9683054.298 | I13: 9693909.74 | J13: 4841527.149 | K13: 0 | L13: 0 | M13: 0 | N13: 0 | O13: 0 | P13: 0 | Q13: 0 | R13: 0 | S13: 0 | T13: 0 | U13: 0 | V13: =($C10+V12)*V$3 -> 0
A15: 2 | B15: ="Year "&$A15&" Additions" -> Year 2 Additions | C15: 0 | D15: =D$5 -> 0
B16: Tax Depreciation | C16: 0 | D16: =$D15*C$3 -> 0 | E16: =$D15*D$3 -> 0 | F16: =$D15*E$3 -> 0 | G16: =$D15*F$3 -> 0 | H16: =$D15*G$3 -> 0 | I16: =$D15*H$3 -> 0 | J16: =$D15*I$3 -> 0 | K16: 0 | L16: 0 | M16: 0 | N16: 0 | O16: 0 | P16: 0 | Q16: 0 | R16: 0 | S16: 0 | T16: 0 | U16: 0 | V16: =$D15*U$3 -> 0
A18: =A15+1 -> 3 | B18: ="Year "&$A18&" Additions" -> Year 3 Additions | C18: 0 | D18: 0 | E18: =E$5 -> 0
B19: Tax Depreciation | C19: 0 | D19: 0 | E19: =$E18*C$3 -> 0 | F19: =$E18*D$3 -> 0 | G19: 0 | H19: 0 | I19: 0 | J19: 0 | K19: 0 | L19: 0 | M19: 0 | N19: 0 | O19: 0 | P19: 0 | Q19: 0 | R19: 0 | S19: 0 | T19: 0 | U19: 0 | V19: 0
A21: =A18+1 -> 4 | B21: ="Year "&$A21&" Additions" -> Year 4 Additions | C21: 0 | D21: 0 | E21: 0 | F21: =F$5 -> 0
B22: Tax Depreciation | C22: 0 | D22: 0 | E22: 0 | F22: =$F21*C$3 -> 0 | G22: =$F21*D$3 -> 0 | H22: 0 | I22: 0 | J22: 0 | K22: 0 | L22: 0 | M22: 0 | N22: 0 | O22: 0 | P22: 0 | Q22: 0 | R22: 0 | S22: 0 | T22: 0 | U22: 0 | V22: =$F21*S$3 -> 0
A24: =A21+1 -> 5 | B24: ="Year "&$A24&" Additions" -> Year 5 Additions | C24: 0 | D24: 0 | E24: 0 | F24: 0 | G24: =G$5 -> 0
B25: Tax Depreciation | C25: 0 | D25: 0 | E25: 0 | F25: 0 | G25: =$G24*C$3 -> 0 | H25: =$G24*D$3 -> 0 | I25: 0 | J25: 0 | K25: 0 | L25: 0 | M25: 0 | N25: 0 | O25: 0 | P25: 0 | Q25: 0 | R25: 0 | S25: 0 | T25: 0 | U25: 0 | V25: 0
A27: =A24+1 -> 6 | B27: ="Year "&$A27&" Additions" -> Year 6 Additions | C27: 0 | D27: 0 | E27: 0 | F27: 0 | G27: 0 | H27: =H$5 -> 0
B28: Tax Depreciation | C28: 0 | D28: 0 | E28: 0 | F28: 0 | G28: 0 | H28: =$H27*C$3 -> 0 | I28: =$H27*D$3 -> 0 | J28: 0 | K28: 0 | L28: 0 | M28: 0 | N28: 0 | O28: 0 | P28: 0 | Q28: 0 | R28: 0 | S28: 0 | T28: 0 | U28: 0 | V28: 0
A30: =A27+1 -> 7 | B30: ="Year "&$A30&" Additions" -> Year 7 Additions | C30: 0 | D30: 0 | E30: 0 | F30: 0 | G30: 0 | H30: 0 | I30: =I$5 -> 0
B31: Tax Depreciation | C31: 0 | D31: 0 | E31: 0 | F31: 0 | G31: 0 | H31: 0 | I31: =$I30*C$3 -> 0 | J31: 0 | K31: =$I30*E$3 -> 0 | L31: 0 | M31: 0 | N31: 0 | O31: =$I30*I$3 -> 0 | P31: 0 | Q31: 0 | R31: 0 | S31: 0 | T31: 0 | U31: 0 | V31: 0
A33: =A30+1 -> 8 | B33: ="Year "&$A33&" Additions" -> Year 8 Additions | C33: 0 | D33: 0 | E33: 0 | F33: 0 | G33: 0 | H33: 0 | I33: 0 | J33: =J$5 -> 0
B34: Tax Depreciation | C34: 0 | D34: 0 | E34: 0 | F34: 0 | G34: 0 | H34: 0 | I34: 0 | J34: =$J33*C$3 -> 0 | K34: =$J33*D$3 -> 0 | L34: 0 | M34: 0 | N34: 0 | O34: 0 | P34: 0 | Q34: 0 | R34: 0 | S34: 0 | T34: 0 | U34: 0 | V34: 0
A36: =A33+1 -> 9 | B36: ="Year "&$A36&" Additions" -> Year 9 Additions | C36: 0 | D36: 0 | E36: 0 | F36: 0 | G36: 0 | H36: 0 | I36: 0 | J36: 0 | K36: =K$5 -> 0
B37: Tax Depreciation | C37: 0 | D37: 0 | E37: 0 | F37: 0 | G37: 0 | H37: 0 | I37: 0 | J37: 0 | K37: =$K36*C$3 -> 0 | L37: =$K36*D$3 -> 0 | M37: 0 | N37: 0 | O37: 0 | P37: 0 | Q37: 0 | R37: 0 | S37: 0 | T37: 0 | U37: 0 | V37: 0
A39: =A36+1 -> 10 | B39: ="Year "&$A39&" Additions" -> Year 10 Additions | C39: 0 | D39: 0 | E39: 0 | F39: 0 | G39: 0 | H39: 0 | I39: 0 | J39: 0 | K39: 0 | L39: =L$5 -> 0
B40: Tax Depreciation | C40: 0 | D40: 0 | E40: 0 | F40: 0 | G40: 0 | H40: 0 | I40: 0 | J40: 0 | K40: 0 | L40: =$L39*C$3 -> 0 | M40: =$L39*D$3 -> 0 | N40: 0 | O40: 0 | P40: 0 | Q40: 0 | R40: 0 | S40: 0 | T40: 0 | U40: 0 | V40: 0
A42: =A39+1 -> 11 | B42: ="Year "&$A42&" Additions" -> Year 11 Additions | C42: 0 | D42: 0 | E42: 0 | F42: 0 | G42: 0 | H42: 0 | I42: 0 | J42: 0 | K42: 0 | L42: 0 | M42: =M$5 -> 0
B43: Tax Depreciation | C43: 0 | D43: 0 | E43: 0 | F43: 0 | G43: 0 | H43: 0 | I43: 0 | J43: 0 | K43: 0 | L43: 0 | M43: =$M42*C$3 -> 0 | N43: =$M42*D$3 -> 0 | O43: 0 | P43: 0 | Q43: 0 | R43: 0 | S43: 0 | T43: 0 | U43: 0 | V43: 0
A45: =A42+1 -> 12 | B45: ="Year "&$A45&" Additions" -> Year 12 Additions | C45: 0 | D45: 0 | E45: 0 | F45: 0 | G45: 0 | H45: 0 | I45: 0 | J45: 0 | K45: 0 | L45: 0 | M45: 0 | N45: =N$5 -> 0
B46: Tax Depreciation | C46: 0 | D46: 0 | E46: 0 | F46: 0 | G46: 0 | H46: 0 | I46: 0 | J46: 0 | K46: 0 | L46: 0 | M46: 0 | N46: =$N45*C$3 -> 0 | O46: =$N45*D$3 -> 0 | P46: 0 | Q46: 0 | R46: 0 | S46: 0 | T46: 0 | U46: 0 | V46: 0
A48: =A45+1 -> 13 | B48: ="Year "&$A48&" Additions" -> Year 13 Additions | C48: 0 | D48: 0 | E48: 0 | F48: 0 | G48: 0 | H48: 0 | I48: 0 | J48: 0 | K48: 0 | L48: 0 | M48: 0 | N48: 0 | O48: =O$5 -> 0
B49: Tax Depreciation | C49: 0 | D49: 0 | E49: 0 | F49: 0 | G49: 0 | H49: 0 | I49: 0 | J49: 0 | K49: 0 | L49: 0 | M49: 0 | N49: 0 | O49: =$O48*C$3 -> 0 | P49: =$O48*D$3 -> 0 | Q49: 0 | R49: 0 | S49: 0 | T49: 0 | U49: 0 | V49: 0
A51: =A48+1 -> 14 | B51: ="Year "&$A51&" Additions" -> Year 14 Additions | C51: 0 | D51: 0 | E51: 0 | F51: 0 | G51: 0 | H51: 0 | I51: 0 | J51: 0 | K51: 0 | L51: 0 | M51: 0 | N51: 0 | O51: 0 | P51: =P$5 -> 0
B52: Tax Depreciation | C52: 0 | D52: 0 | E52: 0 | F52: 0 | G52: 0 | H52: 0 | I52: 0 | J52: 0 | K52: 0 | L52: 0 | M52: 0 | N52: 0 | O52: 0 | P52: =$P51*C$3 -> 0 | Q52: =$P51*D$3 -> 0 | R52: 0 | S52: 0 | T52: 0 | U52: 0 | V52: 0
A54: =A51+1 -> 15 | B54: ="Year "&$A54&" Additions" -> Year 15 Additions | C54: 0 | D54: 0 | E54: 0 | F54: 0 | G54: 0 | H54: 0 | I54: 0 | J54: 0 | K54: 0 | L54: 0 | M54: 0 | N54: 0 | O54: 0 | P54: 0 | Q54: =Q$5 -> 0
B55: Tax Depreciation | C55: 0 | D55: 0 | E55: 0 | F55: 0 | G55: 0 | H55: 0 | I55: 0 | J55: 0 | K55: 0 | L55: 0 | M55: 0 | N55: 0 | O55: 0 | P55: 0 | Q55: =$Q54*C$3 -> 0 | R55: =$Q54*D$3 -> 0 | S55: 0 | T55: 0 | U55: 0 | V55: 0
A57: =A54+1 -> 16 | B57: ="Year "&$A57&" Additions" -> Year 16 Additions | C57: 0 | D57: 0 | E57: 0 | F57: 0 | G57: 0 | H57: 0 | I57: 0 | J57: 0 | K57: 0 | L57: 0 | M57: 0 | N57: 0 | O57: 0 | P57: 0 | Q57: 0 | R57: =R$5 -> 0
B58: Tax Depreciation | C58: 0 | D58: 0 | E58: 0 | F58: 0 | G58: 0 | H58: 0 | I58: 0 | J58: 0 | K58: 0 | L58: 0 | M58: 0 | N58: 0 | O58: 0 | P58: 0 | Q58: 0 | R58: =$R57*C$3 -> 0 | S58: =$R57*D$3 -> 0 | T58: 0 | U58: 0 | V58: 0
A60: =A57+1 -> 17 | B60: ="Year "&$A60&" Additions" -> Year 17 Additions | C60: 0 | D60: 0 | E60: 0 | F60: 0 | G60: 0 | H60: 0 | I60: 0 | J60: 0 | K60: 0 | L60: 0 | M60: 0 | N60: 0 | O60: 0 | P60: 0 | Q60: 0 | R60: 0 | S60: =S$5 -> 0
B61: Tax Depreciation | C61: 0 | D61: 0 | E61: 0 | F61: 0 | G61: 0 | H61: 0 | I61: 0 | J61: 0 | K61: 0 | L61: 0 | M61: 0 | N61: 0 | O61: 0 | P61: 0 | Q61: 0 | R61: 0 | S61: =$S60*C$3 -> 0 | T61: =$S60*D$3 -> 0 | U61: 0 | V61: 0
A63: =A60+1 -> 18 | B63: ="Year "&$A63&" Additions" -> Year 18 Additions | C63: 0 | D63: 0 | E63: 0 | F63: 0 | G63: 0 | H63: 0 | I63: 0 | J63: 0 | K63: 0 | L63: 0 | M63: 0 | N63: 0 | O63: 0 | P63: 0 | Q63: 0 | R63: 0 | S63: 0 | T63: =T$5 -> 0
B64: Tax Depreciation | C64: 0 | D64: 0 | E64: 0 | F64: 0 | G64: 0 | H64: 0 | I64: 0 | J64: 0 | K64: 0 | L64: 0 | M64: 0 | N64: 0 | O64: 0 | P64: 0 | Q64: 0 | R64: 0 | S64: 0 | T64: =$T63*C$3 -> 0 | U64: =$T63*D$3 -> 0 | V64: 0
A66: =A63+1 -> 19 | B66: ="Year "&$A66&" Additions" -> Year 19 Additions | C66: 0 | D66: 0 | E66: 0 | F66: 0 | G66: 0 | H66: 0 | I66: 0 | J66: 0 | K66: 0 | L66: 0 | M66: 0 | N66: 0 | O66: 0 | P66: 0 | Q66: 0 | R66: 0 | S66: 0 | T66: 0 | U66: =U$5 -> 0
B67: Tax Depreciation | C67: 0 | D67: 0 | E67: 0 | F67: 0 | G67: 0 | H67: 0 | I67: 0 | J67: 0 | K67: 0 | L67: 0 | M67: 0 | N67: 0 | O67: 0 | P67: 0 | Q67: 0 | R67: 0 | S67: 0 | T67: 0 | U67: =$U66*C$3 -> 0 | V67: =$U66*D$3 -> 0
A69: =A66+1 -> 20 | B69: ="Year "&$A69&" Additions" -> Year 20 Additions | C69: 0 | D69: 0 | E69: 0 | F69: 0 | G69: 0 | H69: 0 | I69: 0 | J69: 0 | K69: 0 | L69: 0 | M69: 0 | N69: 0 | O69: 0 | P69: 0 | Q69: 0 | R69: 0 | S69: 0 | T69: 0 | U69: 0 | V69: =V$5 -> 0
B70: Tax Depreciation | C70: 0 | D70: 0 | E70: 0 | F70: 0 | G70: 0 | H70: 0 | I70: 0 | J70: 0 | K70: 0 | L70: 0 | M70: 0 | N70: 0 | O70: 0 | P70: 0 | Q70: 0 | R70: 0 | S70: 0 | T70: 0 | U70: 0 | V70: =$V69*C$3 -> 0
B73: 2026$
B74: Depreciation Expense | C74: =SUMIF($B$7:$B$72,"Tax Depreciation",C$7:C$72)+C9 -> 42651031.77 | D74: =SUMIF($B$7:$B$72,"Tax Depreciation",D$7:D$72) -> 26584977.55 | E74: =SUMIF($B$7:$B$72,"Tax Depreciation",E$7:E$72) -> 18986168.12 | F74: 13558447.11 | G74: 9693909.74 | H74: 9683054.298 | I74: 9693909.74 | J74: =SUMIF($B$7:$B$72,"Tax Depreciation",J$7:J$72) -> 4841527.149 | K74: 0 | L74: 0 | M74: 0 | N74: 0 | O74: 0 | P74: 0 | Q74: 0 | R74: 0 | S74: 0 | T74: 0 | U74: 0 | V74: =SUMIF($B$7:$B$72,"Tax Depreciation",V$7:V$72)+IF(V13>0,MACRS!X17*Depreciation!C10,0) -> 0
B75: Gross Plant | C75: =SUMIF($A$12:$A$72,">0",C$12:C$72)+C7 -> 135693025.5 | D75: =SUMIF($A$12:$A$72,">0",D$12:D$72)+C75 -> 135693025.5 | E75: 135693025.5 | F75: 135693025.5 | G75: 135693025.5 | H75: 135693025.5 | I75: 135693025.5 | J75: 135693025.5 | K75: 135693025.5 | L75: 135693025.5 | M75: 135693025.5 | N75: 135693025.5 | O75: 135693025.5 | P75: 135693025.5 | Q75: 135693025.5 | R75: 135693025.5 | S75: 135693025.5 | T75: 135693025.5 | U75: 135693025.5 | V75: 135693025.5
B76: Accumulated Depreciation | C76: =SUM($C$74:C$74) -> 42651031.77 | D76: =SUM($C$74:D$74) -> 69236009.32 | E76: =SUM($C$74:E$74) -> 88222177.44 | F76: =SUM($C$74:F$74) -> 101780624.5 | G76: =SUM($C$74:G$74) -> 111474534.3 | H76: =SUM($C$74:H$74) -> 121157588.6 | I76: =SUM($C$74:I$74) -> 130851498.3 | J76: =SUM($C$74:J$74) -> 135693025.5 | K76: =SUM($C$74:K$74) -> 135693025.5 | L76: =SUM($C$74:L$74) -> 135693025.5 | M76: =SUM($C$74:M$74) -> 135693025.5 | N76: =SUM($C$74:N$74) -> 135693025.5 | O76: =SUM($C$74:O$74) -> 135693025.5 | P76: =SUM($C$74:P$74) -> 135693025.5 | Q76: =SUM($C$74:Q$74) -> 135693025.5 | R76: =SUM($C$74:R$74) -> 135693025.5 | S76: =SUM($C$74:S$74) -> 135693025.5 | T76: =SUM($C$74:T$74) -> 135693025.5 | U76: =SUM($C$74:U$74) -> 135693025.5 | V76: =SUM($C$74:V$74) -> 135693025.5
B77: Net Plant | C77: =C75-C76 -> 93041993.7 | D77: =D75-D76 -> 66457016.15 | E77: 47470848.03 | F77: =F75-F76 -> 33912400.93 | G77: 24218491.19 | H77: 14535436.89 | I77: 4841527.149 | J77: 0 | K77: 0 | L77: 0 | M77: 0 | N77: 0 | O77: 0 | P77: 0 | Q77: 0 | R77: 0 | S77: 0 | T77: 0 | U77: 0 | V77: 0
B79: Plant Basis for Property Tax Calculation (Gross Plant Less Depreciation) | C79: =C75-(C75*MACRS!D9) -> 116302492.1 | D79: =C79-D75*MACRS!E9 -> 83071270.19 | E79: =D79-E75*MACRS!F9 -> 59338560.04 | F79: =E79-F75*MACRS!G9 -> 42390501.16 | G79: =F79-G75*MACRS!H9 -> 30273113.98 | H79: =G79-H75*MACRS!I9 -> 18169296.11 | I79: =H79-I75*MACRS!J9 -> 6051908.936 | J79: =I79-J75*MACRS!K9 -> 1.11758709e-08 | K79: =J79-K75*MACRS!L9 -> 1.11758709e-08 | L79: =K79-L75*MACRS!M9 -> 1.11758709e-08 | M79: =L79-M75*MACRS!N9 -> 1.11758709e-08 | N79: =M79-N75*MACRS!O9 -> 1.11758709e-08 | O79: =N79-O75*MACRS!P9 -> 1.11758709e-08 | P79: =O79-P75*MACRS!Q9 -> 1.11758709e-08 | Q79: =P79-Q75*MACRS!R9 -> 1.11758709e-08 | R79: =Q79-R75*MACRS!S9 -> 1.11758709e-08 | S79: =R79-S75*MACRS!T9 -> 1.11758709e-08 | T79: =S79-T75*MACRS!U9 -> 1.11758709e-08 | U79: =T79-U75*MACRS!V9 -> 1.11758709e-08 | V79: =U79-V75*MACRS!W9 -> 1.11758709e-08
